Workbook

Sheet START
B1: OM DENNE SKABELON
B2: Brug projektmappen Budget for forretningsudgifter til at holde styr på Planlagte og Faktiske udgifter og Varianser.
B3: Angiv firmanavn, og tilføj et logo.
B4: Angiv oplysningerne i tabellerne i regnearkene Planlagte udgifter og Faktiske udgifter.
B5: Tabellerne bliver automatisk opdateret i regnearket Udgiftsvarians og i diagrammer i regnearket Udgiftsanalyse
B6: Bemærk!
B7: Der er yderligere vejledning at finde i kolonne A i hvert regneark. Denne tekst er skjult med vilje. Du kan fjerne tekst ved at markere kolonne A og derefter vælge Slet. For ikke længere at skjule tekst skal du markere kolonne A og derefter ændre skriftfarven.
B8: Hvis du vil vide mere om tabeller, skal du trykke på SKIFT og derefter F10, mens du er i en tabel, vælge indstillingen TABEL og derefter vælge ALTERNATIV TEKST

Sheet PLANLAGTE UDGIFTER
B2: Firmanavn | K2: Detaljerede omkostningsestimater
K3: Skyggelagte celler er beregninger.
B4: PLANLAGTE UDGIFTER | C4: JAN | D4: FEB | E4: MAR | F4: APR | G4: MAJ | H4: JUN | I4: JUL | J4: AUG | K4: SEPT | L4: OKT | M4: NOV | N4: DEC | O4: ÅR
B5: Medarbejderomkostninger | C5: Jan | D5: Feb | E5: Mar | F5: Apr | G5: Maj | H5: Jun | I5: Jul | J5: Aug | K5: Sep | L5: Okt | M5: Nov | N5: Dec | O5: ÅR
B6: Lønninger | C6: kr. 85,000.00 | D6: kr. 85,000.00 | E6: kr. 85,000.00 | F6: kr. 87,500.00 | G6: kr. 87,500.00 | H6: kr. 87,500.00 | I6: kr. 87,500.00 | J6: kr. 92,400.00 | K6: kr. 92,400.00 | L6: kr. 92,400.00 | M6: kr. 92,400.00 | N6: kr. 92,400.00 | O6: =SUM(C6:N6) -> kr. 1,067,000.00
B7: Arbejdsgoder | C7: =C6*0.27 -> kr. 22,950.00 | D7: kr. 22,950.00 | E7: kr. 22,950.00 | F7: kr. 23,625.00 | G7: kr. 23,625.00 | H7: kr. 23,625.00 | I7: kr. 23,625.00 | J7: kr. 24,948.00 | K7: kr. 24,948.00 | L7: kr. 24,948.00 | M7: kr. 24,948.00 | N7: kr. 24,948.00 | O7: =SUM(C7:N7) -> kr. 288,090.00
B8: Subtotal | C8: =SUBTOTAL(109,MedarbejderPlan[Jan]) -> kr. 107,950.00 | D8: =SUBTOTAL(109,MedarbejderPlan[Feb]) -> kr. 107,950.00 | E8: =SUBTOTAL(109,MedarbejderPlan[Mar]) -> kr. 107,950.00 | F8: =SUBTOTAL(109,MedarbejderPlan[Apr]) -> kr. 111,125.00 | G8: =SUBTOTAL(109,MedarbejderPlan[Maj]) -> kr. 111,125.00 | H8: =SUBTOTAL(109,MedarbejderPlan[Jun]) -> kr. 111,125.00 | I8: =SUBTOTAL(109,MedarbejderPlan[Jul]) -> kr. 111,125.00 | J8: =SUBTOTAL(109,MedarbejderPlan[Aug]) -> kr. 117,348.00 | K8: =SUBTOTAL(109,MedarbejderPlan[Sep]) -> kr. 117,348.00 | L8: =SUBTOTAL(109,MedarbejderPlan[Okt]) -> kr. 117,348.00 | M8: =SUBTOTAL(109,MedarbejderPlan[Nov]) -> kr. 117,348.00 | N8: =SUBTOTAL(109,MedarbejderPlan[Dec]) -> kr. 117,348.00 | O8: =SUBTOTAL(109,MedarbejderPlan[ÅR]) -> kr. 1,355,090.00
B10: Kontoromkostninger | C10: Jan | D10: Feb | E10: Mar | F10: Apr | G10: Maj | H10: Jun | I10: Jul | J10: Aug | K10: Sep | L10: Okt | M10: Nov | N10: Dec | O10: ÅR
B11: Leje af kontor | C11: kr. 9,800.00 | D11: kr. 9,800.00 | E11: kr. 9,800.00 | F11: kr. 9,800.00 | G11: kr. 9,800.00 | H11: kr. 9,800.00 | I11: kr. 9,800.00 | J11: kr. 9,800.00 | K11: kr. 9,800.00 | L11: kr. 9,800.00 | M11: kr. 9,800.00 | N11: kr. 9,800.00 | O11: =SUM(C11:N11) -> kr. 117,600.00
B12: Benzin | D12: kr. 400.00 | E12: kr. 400.00 | F12: kr. 100.00 | G12: kr. 100.00 | H12: kr. 100.00 | I12: kr. 100.00 | J12: kr. 100.00 | K12: kr. 100.00 | L12: kr. 100.00 | M12: kr. 400.00 | N12: kr. 400.00 | O12: kr. 2,300.00
B13: Elektricitet | C13: kr. 300.00 | D13: kr. 300.00 | E13: kr. 300.00 | F13: kr. 300.00 | G13: kr. 300.00 | H13: kr. 300.00 | I13: kr. 300.00 | J13: kr. 300.00 | K13: kr. 300.00 | L13: kr. 300.00 | M13: kr. 300.00 | N13: kr. 300.00 | O13: kr. 3,600.00
B14: Vand | C14: kr. 40.00 | D14: kr. 40.00 | E14: kr. 40.00 | F14: kr. 40.00 | G14: kr. 40.00 | H14: kr. 40.00 | I14: kr. 40.00 | J14: kr. 40.00 | K14: kr. 40.00 | L14: kr. 40.00 | M14: kr. 40.00 | N14: kr. 40.00 | O14: kr. 480.00
B15: Telefonnummer | C15: kr. 250.00 | D15: kr. 250.00 | E15: kr. 250.00 | F15: kr. 250.00 | G15: kr. 250.00 | H15: kr. 250.00 | I15: kr. 250.00 | J15: kr. 250.00 | K15: kr. 250.00 | L15: kr. 250.00 | M15: kr. 250.00 | N15: kr. 250.00 | O15: kr. 3,000.00
B16: Internetadgang | C16: kr. 180.00 | D16: kr. 180.00 | E16: kr. 180.00 | F16: kr. 180.00 | G16: kr. 180.00 | H16: kr. 180.00 | I16: kr. 180.00 | J16: kr. 180.00 | K16: kr. 180.00 | L16: kr. 180.00 | M16: kr. 180.00 | N16: kr. 180.00 | O16: kr. 2,160.00
B17: Kontorforsyninger | C17: kr. 200.00 | D17: kr. 200.00 | E17: kr. 200.00 | F17: kr. 200.00 | G17: kr. 200.00 | H17: kr. 200.00 | I17: kr. 200.00 | J17: kr. 200.00 | K17: kr. 200.00 | L17: kr. 200.00 | M17: kr. 200.00 | N17: kr. 200.00 | O17: kr. 2,400.00
B18: Vagt | C18: kr. 600.00 | D18: kr. 600.00 | E18: kr. 600.00 | F18: kr. 600.00 | G18: kr. 600.00 | H18: kr. 600.00 | I18: kr. 600.00 | J18: kr. 600.00 | K18: kr. 600.00 | L18: kr. 600.00 | M18: kr. 600.00 | N18: kr. 600.00 | O18: kr. 7,200.00
B19: Subtotal | C19: =SUBTOTAL(109,KontorPlan[Jan]) -> kr. 11,370.00 | D19: =SUBTOTAL(109,KontorPlan[Feb]) -> kr. 11,770.00 | E19: =SUBTOTAL(109,KontorPlan[Mar]) -> kr. 11,770.00 | F19: =SUBTOTAL(109,KontorPlan[Apr]) -> kr. 11,470.00 | G19: =SUBTOTAL(109,KontorPlan[Maj]) -> kr. 11,470.00 | H19: =SUBTOTAL(109,KontorPlan[Jun]) -> kr. 11,470.00 | I19: =SUBTOTAL(109,KontorPlan[Jul]) -> kr. 11,470.00 | J19: =SUBTOTAL(109,KontorPlan[Aug]) -> kr. 11,470.00 | K19: =SUBTOTAL(109,KontorPlan[Sep]) -> kr. 11,470.00 | L19: =SUBTOTAL(109,KontorPlan[Okt]) -> kr. 11,470.00 | M19: =SUBTOTAL(109,KontorPlan[Nov]) -> kr. 11,770.00 | N19: =SUBTOTAL(109,KontorPlan[Dec]) -> kr. 11,770.00 | O19: =SUBTOTAL(109,KontorPlan[ÅR]) -> kr. 138,740.00
B21: Marketingomkostninger | C21: Jan | D21: Feb | E21: Mar | F21: Apr | G21: Maj | H21: Jun | I21: Jul | J21: Aug | K21: Sep | L21: Okt | M21: Nov | N21: Dec | O21: ÅR
B22: Hosting for websted | C22: kr. 500.00 | D22: kr. 500.00 | E22: kr. 500.00 | F22: kr. 500.00 | G22: kr. 500.00 | H22: kr. 500.00 | I22: kr. 500.00 | J22: kr. 500.00 | K22: kr. 500.00 | L22: kr. 500.00 | M22: kr. 500.00 | N22: kr. 500.00 | O22: =SUM(C22:N22) -> kr. 6,000.00
B23: Opdateringer af websted | C23: kr. 200.00 | D23: kr. 200.00 | E23: kr. 200.00 | F23: kr. 200.00 | G23: kr. 200.00 | H23: kr. 1,000.00 | I23: kr. 200.00 | J23: kr. 200.00 | K23: kr. 200.00 | L23: kr. 200.00 | M23: kr. 200.00 | N23: kr. 1,000.00 | O23: kr. 4,000.00
B24: Forberedelse af marketingartikler | C24: kr. 5,000.00 | D24: kr. 0.00 | E24: kr. 0.00 | F24: kr. 5,000.00 | G24: kr. 0.00 | H24: kr. 0.00 | I24: kr. 5,000.00 | J24: kr. 0.00 | K24: kr. 0.00 | L24: kr. 5,000.00 | M24: kr. 0.00 | N24: kr. 0.00 | O24: kr. 20,000.00
B25: Tryk af marketingartikler | C25: kr. 200.00 | D25: kr. 200.00 | E25: kr. 200.00 | F25: kr. 200.00 | G25: kr. 200.00 | H25: kr. 200.00 | I25: kr. 200.00 | J25: kr. 200.00 | K25: kr. 200.00 | L25: kr. 200.00 | M25: kr. 200.00 | N25: kr. 200.00 | O25: kr. 2,400.00
B26: Marketingarrangementer | C26: kr. 2,000.00 | D26: kr. 2,000.00 | E26: kr. 2,000.00 | F26: kr. 5,000.00 | G26: kr. 2,000.00 | H26: kr. 2,000.00 | I26: kr. 2,000.00 | J26: kr. 5,000.00 | K26: kr. 2,000.00 | L26: kr. 2,000.00 | M26: kr. 2,000.00 | N26: kr. 5,000.00 | O26: kr. 33,000.00
B27: Diverse udgifter | C27: kr. 200.00 | D27: kr. 200.00 | E27: kr. 200.00 | F27: kr. 200.00 | G27: kr. 200.00 | H27: kr. 200.00 | I27: kr. 200.00 | J27: kr. 200.00 | K27: kr. 200.00 | L27: kr. 200.00 | M27: kr. 200.00 | N27: kr. 200.00 | O27: kr. 2,400.00
B28: Subtotal | C28: =SUBTOTAL(109,MarketingPlan[Jan]) -> kr. 8,100.00 | D28: =SUBTOTAL(109,MarketingPlan[Feb]) -> kr. 3,100.00 | E28: =SUBTOTAL(109,MarketingPlan[Mar]) -> kr. 3,100.00 | F28: =SUBTOTAL(109,MarketingPlan[Apr]) -> kr. 11,100.00 | G28: =SUBTOTAL(109,MarketingPlan[Maj]) -> kr. 3,100.00 | H28: =SUBTOTAL(109,MarketingPlan[Jun]) -> kr. 3,900.00 | I28: =SUBTOTAL(109,MarketingPlan[Jul]) -> kr. 8,100.00 | J28: =SUBTOTAL(109,MarketingPlan[Aug]) -> kr. 6,100.00 | K28: =SUBTOTAL(109,MarketingPlan[Sep]) -> kr. 3,100.00 | L28: =SUBTOTAL(109,MarketingPlan[Okt]) -> kr. 8,100.00 | M28: =SUBTOTAL(109,MarketingPlan[Nov]) -> kr. 3,100.00 | N28: =SUBTOTAL(109,MarketingPlan[Dec]) -> kr. 6,900.00 | O28: =SUBTOTAL(109,MarketingPlan[ÅR]) -> kr. 67,800.00
B30: Kurser/rejser | C30: Jan | D30: Feb | E30: Mar | F30: Apr | G30: Maj | H30: Jun | I30: Jul | J30: Aug | K30: Sep | L30: Okt | M30: Nov | N30: Dec | O30: ÅR
B31: Kurser | C31: kr. 2,000.00 | D31: kr. 2,000.00 | E31: kr. 2,000.00 | F31: kr. 2,000.00 | G31: kr. 2,000.00 | H31: kr. 2,000.00 | I31: kr. 2,000.00 | J31: kr. 2,000.00 | K31: kr. 2,000.00 | L31: kr. 2,000.00 | M31: kr. 2,000.00 | N31: kr. 2,000.00 | O31: =SUM(C31:N31) -> kr. 24,000.00
B32: Kursusrelaterede rejseomkostninger | C32: kr. 2,000.00 | D32: kr. 2,000.00 | E32: kr. 2,000.00 | F32: kr. 2,000.00 | G32: kr. 2,000.00 | H32: kr. 2,000.00 | I32: kr. 2,000.00 | J32: kr. 2,000.00 | K32: kr. 2,000.00 | L32: kr. 2,000.00 | M32: kr. 2,000.00 | N32: kr. 2,000.00 | O32: =SUM(C32:N32) -> kr. 24,000.00
B33: Subtotal | C33: =SUBTOTAL(109,KursusOgRejsePlan[Jan]) -> kr. 4,000.00 | D33: =SUBTOTAL(109,KursusOgRejsePlan[Feb]) -> kr. 4,000.00 | E33: =SUBTOTAL(109,KursusOgRejsePlan[Mar]) -> kr. 4,000.00 | F33: =SUBTOTAL(109,KursusOgRejsePlan[Apr]) -> kr. 4,000.00 | G33: =SUBTOTAL(109,KursusOgRejsePlan[Maj]) -> kr. 4,000.00 | H33: =SUBTOTAL(109,KursusOgRejsePlan[Jun]) -> kr. 4,000.00 | I33: =SUBTOTAL(109,KursusOgRejsePlan[Jul]) -> kr. 4,000.00 | J33: =SUBTOTAL(109,KursusOgRejsePlan[Aug]) -> kr. 4,000.00 | K33: =SUBTOTAL(109,KursusOgRejsePlan[Sep]) -> kr. 4,000.00 | L33: =SUBTOTAL(109,KursusOgRejsePlan[Okt]) -> kr. 4,000.00 | M33: =SUBTOTAL(109,KursusOgRejsePlan[Nov]) -> kr. 4,000.00 | N33: =SUBTOTAL(109,KursusOgRejsePlan[Dec]) -> kr. 4,000.00 | O33: =SUBTOTAL(109,KursusOgRejsePlan[ÅR]) -> kr. 48,000.00
B35: SAMLEDE BELØB | C35: Jan | D35: Feb | E35: Mar | F35: Apr | G35: Maj | H35: Jun | I35: Jul | J35: Aug | K35: Sep | L35: Okt | M35: Nov | N35: Dec | O35: År
B36: Månedlige planlagte udgifter | C36: =KursusOgRejsePlan[[#Totals],[Jan]]+MarketingPlan[[#Totals],[Jan]]+KontorPlan[[#Totals],[Jan]]+MedarbejderPlan[[#Totals],[Jan]] -> kr. 131,420.00 | D36: =KursusOgRejsePlan[[#Totals],[Feb]]+MarketingPlan[[#Totals],[Feb]]+KontorPlan[[#Totals],[Feb]]+MedarbejderPlan[[#Totals],[Feb]] -> kr. 126,820.00 | E36: =KursusOgRejsePlan[[#Totals],[Mar]]+MarketingPlan[[#Totals],[Mar]]+KontorPlan[[#Totals],[Mar]]+MedarbejderPlan[[#Totals],[Mar]] -> kr. 126,820.00 | F36: =KursusOgRejsePlan[[#Totals],[Apr]]+MarketingPlan[[#Totals],[Apr]]+KontorPlan[[#Totals],[Apr]]+MedarbejderPlan[[#Totals],[Apr]] -> kr. 137,695.00 | G36: =KursusOgRejsePlan[[#Totals],[Maj]]+MarketingPlan[[#Totals],[Maj]]+KontorPlan[[#Totals],[Maj]]+MedarbejderPlan[[#Totals],[Maj]] -> kr. 129,695.00 | H36: =KursusOgRejsePlan[[#Totals],[Jun]]+MarketingPlan[[#Totals],[Jun]]+KontorPlan[[#Totals],[Jun]]+MedarbejderPlan[[#Totals],[Jun]] -> kr. 130,495.00 | I36: =KursusOgRejsePlan[[#Totals],[Jul]]+MarketingPlan[[#Totals],[Jul]]+KontorPlan[[#Totals],[Jul]]+MedarbejderPlan[[#Totals],[Jul]] -> kr. 134,695.00 | J36: =KursusOgRejsePlan[[#Totals],[Aug]]+MarketingPlan[[#Totals],[Aug]]+KontorPlan[[#Totals],[Aug]]+MedarbejderPlan[[#Totals],[Aug]] -> kr. 138,918.00 | K36: =KursusOgRejsePlan[[#Totals],[Sep]]+MarketingPlan[[#Totals],[Sep]]+KontorPlan[[#Totals],[Sep]]+MedarbejderPlan[[#Totals],[Sep]] -> kr. 135,918.00 | L36: =KursusOgRejsePlan[[#Totals],[Okt]]+MarketingPlan[[#Totals],[Okt]]+KontorPlan[[#Totals],[Okt]]+MedarbejderPlan[[#Totals],[Okt]] -> kr. 140,918.00 | M36: =KursusOgRejsePlan[[#Totals],[Nov]]+MarketingPlan[[#Totals],[Nov]]+KontorPlan[[#Totals],[Nov]]+MedarbejderPlan[[#Totals],[Nov]] -> kr. 136,218.00 | N36: =KursusOgRejsePlan[[#Totals],[Dec]]+MarketingPlan[[#Totals],[Dec]]+KontorPlan[[#Totals],[Dec]]+MedarbejderPlan[[#Totals],[Dec]] -> kr. 140,018.00 | O36: =KursusOgRejsePlan[[#Totals],[ÅR]]+MarketingPlan[[#Totals],[ÅR]]+KontorPlan[[#Totals],[ÅR]]+MedarbejderPlan[[#Totals],[ÅR]] -> kr. 1,609,630.00
B37: SAMLEDE planlagte udgifter | C37: =SUM($C$36:C36) -> kr. 131,420.00 | D37: =SUM($C$36:D36) -> kr. 258,240.00 | E37: =SUM($C$36:E36) -> kr. 385,060.00 | F37: =SUM($C$36:F36) -> kr. 522,755.00 | G37: =SUM($C$36:G36) -> kr. 652,450.00 | H37: =SUM($C$36:H36) -> kr. 782,945.00 | I37: =SUM($C$36:I36) -> kr. 917,640.00 | J37: =SUM($C$36:J36) -> kr. 1,056,558.00 | K37: =SUM($C$36:K36) -> kr. 1,192,476.00 | L37: =SUM($C$36:L36) -> kr. 1,333,394.00 | M37: =SUM($C$36:M36) -> kr. 1,469,612.00 | N37: =SUM($C$36:N36) -> kr. 1,609,630.00

Sheet FAKTISKE UDGIFTER
B2: ='PLANLAGTE UDGIFTER'!B2:D3 -> Firmanavn | K2: =worksheet_title -> Detaljerede omkostningsestimater
K3: Skyggelagte celler er beregninger.
B4: FAKTISKE UDGIFTER | C4: JAN | D4: FEB | E4: MAR | F4: APR | G4: MAJ | H4: JUN | I4: JUL | J4: AUG | K4: SEPT | L4: OKT | M4: NOV | N4: DEC | O4: ÅR
B5: Medarbejderomkostninger | C5: Jan | D5: Feb | E5: Mar | F5: Apr | G5: Maj | H5: Jun | I5: Jul | J5: Aug | K5: Sep | L5: Okt | M5: Nov | N5: Dec | O5: ÅR
B6: Lønninger | C6: kr. 85,000.00 | D6: kr. 85,000.00 | E6: kr. 85,000.00 | F6: kr. 88,000.00 | G6: kr. 88,000.00 | H6: kr. 88,000.00 | O6: =SUM(C6:N6) -> kr. 519,000.00
B7: Arbejdsgoder | C7: =C6*0.27 -> kr. 22,950.00 | D7: kr. 22,950.00 | E7: kr. 22,950.00 | F7: kr. 23,760.00 | G7: kr. 23,760.00 | H7: kr. 23,760.00 | I7: kr. 0.00 | J7: kr. 0.00 | K7: kr. 0.00 | L7: kr. 0.00 | M7: kr. 0.00 | N7: kr. 0.00 | O7: =SUM(C7:N7) -> kr. 140,130.00
B8: Subtotal | C8: =SUBTOTAL(109,MedarbejderFaktisk[Jan]) -> kr. 107,950.00 | D8: =SUBTOTAL(109,MedarbejderFaktisk[Feb]) -> kr. 107,950.00 | E8: =SUBTOTAL(109,MedarbejderFaktisk[Mar]) -> kr. 107,950.00 | F8: =SUBTOTAL(109,MedarbejderFaktisk[Apr]) -> kr. 111,760.00 | G8: =SUBTOTAL(109,MedarbejderFaktisk[Maj]) -> kr. 111,760.00 | H8: =SUBTOTAL(109,MedarbejderFaktisk[Jun]) -> kr. 111,760.00 | I8: =SUBTOTAL(109,MedarbejderFaktisk[Jul]) -> kr. 0.00 | J8: =SUBTOTAL(109,MedarbejderFaktisk[Aug]) -> kr. 0.00 | K8: =SUBTOTAL(109,MedarbejderFaktisk[Sep]) -> kr. 0.00 | L8: =SUBTOTAL(109,MedarbejderFaktisk[Okt]) -> kr. 0.00 | M8: =SUBTOTAL(109,MedarbejderFaktisk[Nov]) -> kr. 0.00 | N8: =SUBTOTAL(109,MedarbejderFaktisk[Dec]) -> kr. 0.00 | O8: =SUBTOTAL(109,MedarbejderFaktisk[ÅR]) -> kr. 659,130.00
B10: Kontoromkostninger | C10: Jan | D10: Feb | E10: Mar | F10: Apr | G10: Maj | H10: Jun | I10: Jul | J10: Aug | K10: Sep | L10: Okt | M10: Nov | N10: Dec | O10: ÅR
B11: Leje af kontor | C11: kr. 9,800.00 | D11: kr. 9,800.00 | E11: kr. 9,800.00 | F11: kr. 9,800.00 | G11: kr. 9,800.00 | H11: kr. 9,800.00 | O11: =SUM(C11:N11) -> kr. 58,800.00
B12: Benzin | C12: kr. 4.00 | D12: kr. 430.00 | E12: kr. 385.00 | F12: kr. 230.00 | G12: kr. 87.00 | H12: kr. 88.00 | O12: kr. 1,224.00
B13: Elektricitet | C13: kr. 288.00 | D13: kr. 278.00 | E13: kr. 268.00 | F13: kr. 299.00 | G13: kr. 306.00 | H13: kr. 290.00 | O13: kr. 1,729.00
B14: Vand | C14: kr. 35.00 | D14: kr. 33.00 | E14: kr. 34.00 | F14: kr. 36.00 | G14: kr. 34.00 | H14: kr. 36.00 | O14: kr. 208.00
B15: Telefonnummer | C15: kr. 224.00 | D15: kr. 235.00 | E15: kr. 265.00 | F15: kr. 245.00 | G15: kr. 245.00 | H15: kr. 220.00 | O15: kr. 1,434.00
B16: Internetadgang | C16: kr. 180.00 | D16: kr. 180.00 | E16: kr. 180.00 | F16: kr. 180.00 | G16: kr. 180.00 | H16: kr. 180.00 | O16: kr. 1,080.00
B17: Kontorforsyninger | C17: kr. 256.00 | D17: kr. 142.00 | E17: kr. 160.00 | F17: kr. 221.00 | G17: kr. 256.00 | H17: kr. 240.00 | O17: kr. 1,275.00
B18: Vagt | C18: kr. 600.00 | D18: kr. 600.00 | E18: kr. 600.00 | F18: kr. 600.00 | G18: kr. 600.00 | H18: kr. 600.00 | O18: kr. 3,600.00
B19: Subtotal | C19: =SUBTOTAL(109,KontorFaktisk[Jan]) -> kr. 11,387.00 | D19: =SUBTOTAL(109,KontorFaktisk[Feb]) -> kr. 11,698.00 | E19: =SUBTOTAL(109,KontorFaktisk[Mar]) -> kr. 11,692.00 | F19: =SUBTOTAL(109,KontorFaktisk[Apr]) -> kr. 11,611.00 | G19: =SUBTOTAL(109,KontorFaktisk[Maj]) -> kr. 11,508.00 | H19: =SUBTOTAL(109,KontorFaktisk[Jun]) -> kr. 11,454.00 | I19: =SUBTOTAL(109,KontorFaktisk[Jul]) -> kr. 0.00 | J19: =SUBTOTAL(109,KontorFaktisk[Aug]) -> kr. 0.00 | K19: =SUBTOTAL(109,KontorFaktisk[Sep]) -> kr. 0.00 | L19: =SUBTOTAL(109,KontorFaktisk[Okt]) -> kr. 0.00 | M19: =SUBTOTAL(109,KontorFaktisk[Nov]) -> kr. 0.00 | N19: =SUBTOTAL(109,KontorFaktisk[Dec]) -> kr. 0.00 | O19: =SUBTOTAL(109,KontorFaktisk[ÅR]) -> kr. 69,350.00
B21: Marketingomkostninger | C21: Jan | D21: Feb | E21: Mar | F21: Apr | G21: Maj | H21: Jun | I21: Jul | J21: Aug | K21: Sep | L21: Okt | M21: Nov | N21: Dec | O21: ÅR
B22: Hosting for websted | C22: kr. 500.00 | D22: kr. 500.00 | E22: kr. 500.00 | F22: kr. 500.00 | G22: kr. 500.00 | H22: kr. 500.00 | O22: =SUM(C22:N22) -> kr. 3,000.00
B23: Opdateringer af websted | C23: kr. 200.00 | D23: kr. 200.00 | E23: kr. 200.00 | F23: kr. 200.00 | G23: kr. 200.00 | H23: kr. 1,500.00 | O23: kr. 2,500.00
B24: Forberedelse af marketingartikler | C24: kr. 4,800.00 | D24: kr. 0.00 | E24: kr. 0.00 | F24: kr. 5,500.00 | G24: kr. 0.00 | H24: kr. 0.00 | O24: kr. 10,300.00
B25: Tryk af marketingartikler | C25: kr. 100.00 | D25: kr. 500.00 | E25: kr. 100.00 | F25: kr. 100.00 | G25: kr. 600.00 | H25: kr. 180.00 | O25: kr. 1,580.00
B26: Marketingarrangementer | C26: kr. 1,800.00 | D26: kr. 2,200.00 | E26: kr. 2,200.00 | F26: kr. 4,700.00 | G26: kr. 1,500.00 | H26: kr. 2,300.00 | O26: kr. 14,700.00
B27: Diverse udgifter | C27: kr. 145.00 | D27: kr. 156.00 | E27: kr. 123.00 | F27: kr. 223.00 | G27: kr. 187.00 | H27: kr. 245.00 | O27: kr. 1,079.00
B28: Subtotal | C28: =SUBTOTAL(109,MarketingFaktisk[Jan]) -> kr. 7,545.00 | D28: =SUBTOTAL(109,MarketingFaktisk[Feb]) -> kr. 3,556.00 | E28: =SUBTOTAL(109,MarketingFaktisk[Mar]) -> kr. 3,123.00 | F28: =SUBTOTAL(109,MarketingFaktisk[Apr]) -> kr. 11,223.00 | G28: =SUBTOTAL(109,MarketingFaktisk[Maj]) -> kr. 2,987.00 | H28: =SUBTOTAL(109,MarketingFaktisk[Jun]) -> kr. 4,725.00 | I28: =SUBTOTAL(109,MarketingFaktisk[Jul]) -> kr. 0.00 | J28: =SUBTOTAL(109,MarketingFaktisk[Aug]) -> kr. 0.00 | K28: =SUBTOTAL(109,MarketingFaktisk[Sep]) -> kr. 0.00 | L28: =SUBTOTAL(109,MarketingFaktisk[Okt]) -> kr. 0.00 | M28: =SUBTOTAL(109,MarketingFaktisk[Nov]) -> kr. 0.00 | N28: =SUBTOTAL(109,MarketingFaktisk[Dec]) -> kr. 0.00 | O28: =SUBTOTAL(109,MarketingFaktisk[ÅR]) -> kr. 33,159.00
B30: Kurser/rejser | C30: Jan | D30: Feb | E30: Mar | F30: Apr | G30: Maj | H30: Jun | I30: Jul | J30: Aug | K30: Sep | L30: Okt | M30: Nov | N30: Dec | O30: ÅR
B31: Kurser | C31: kr. 1,600.00 | D31: kr. 2,400.00 | E31: kr. 1,400.00 | F31: kr. 1,600.00 | G31: kr. 1,200.00 | H31: kr. 2,800.00 | O31: =SUM(C31:N31) -> kr. 11,000.00
B32: Kursusrelaterede rejseomkostninger | C32: kr. 1,200.00 | D32: kr. 2,200.00 | E32: kr. 1,400.00 | F32: kr. 1,200.00 | G32: kr. 800.00 | H32: kr. 3,500.00 | O32: =SUM(C32:N32) -> kr. 10,300.00
B33: Subtotal | C33: =SUBTOTAL(109,KursusOgRejseFaktisk[Jan]) -> kr. 2,800.00 | D33: =SUBTOTAL(109,KursusOgRejseFaktisk[Feb]) -> kr. 4,600.00 | E33: =SUBTOTAL(109,KursusOgRejseFaktisk[Mar]) -> kr. 2,800.00 | F33: =SUBTOTAL(109,KursusOgRejseFaktisk[Apr]) -> kr. 2,800.00 | G33: =SUBTOTAL(109,KursusOgRejseFaktisk[Maj]) -> kr. 2,000.00 | H33: =SUBTOTAL(109,KursusOgRejseFaktisk[Jun]) -> kr. 6,300.00 | I33: =SUBTOTAL(109,KursusOgRejseFaktisk[Jul]) -> kr. 0.00 | J33: =SUBTOTAL(109,KursusOgRejseFaktisk[Aug]) -> kr. 0.00 | K33: =SUBTOTAL(109,KursusOgRejseFaktisk[Sep]) -> kr. 0.00 | L33: =SUBTOTAL(109,KursusOgRejseFaktisk[Okt]) -> kr. 0.00 | M33: =SUBTOTAL(109,KursusOgRejseFaktisk[Nov]) -> kr. 0.00 | N33: =SUBTOTAL(109,KursusOgRejseFaktisk[Dec]) -> kr. 0.00 | O33: =SUBTOTAL(109,KursusOgRejseFaktisk[ÅR]) -> kr. 21,300.00
B35: SAMLEDE planlagte udgifter | C35: Jan | D35: Feb | E35: Mar | F35: Apr | G35: Maj | H35: Jun | I35: Jul | J35: Aug | K35: Sep | L35: Okt | M35: Nov | N35: Dec | O35: År
B36: Månedlige faktiske udgifter | C36: =KursusOgRejseFaktisk[[#Totals],[Jan]]+MarketingFaktisk[[#Totals],[Jan]]+KontorFaktisk[[#Totals],[Jan]]+MedarbejderFaktisk[[#Totals],[Jan]] -> kr. 129,682.00 | D36: =KursusOgRejseFaktisk[[#Totals],[Feb]]+MarketingFaktisk[[#Totals],[Feb]]+KontorFaktisk[[#Totals],[Feb]]+MedarbejderFaktisk[[#Totals],[Feb]] -> kr. 127,804.00 | E36: =KursusOgRejseFaktisk[[#Totals],[Mar]]+MarketingFaktisk[[#Totals],[Mar]]+KontorFaktisk[[#Totals],[Mar]]+MedarbejderFaktisk[[#Totals],[Mar]] -> kr. 125,565.00 | F36: =KursusOgRejseFaktisk[[#Totals],[Apr]]+MarketingFaktisk[[#Totals],[Apr]]+KontorFaktisk[[#Totals],[Apr]]+MedarbejderFaktisk[[#Totals],[Apr]] -> kr. 137,394.00 | G36: =KursusOgRejseFaktisk[[#Totals],[Maj]]+MarketingFaktisk[[#Totals],[Maj]]+KontorFaktisk[[#Totals],[Maj]]+MedarbejderFaktisk[[#Totals],[Maj]] -> kr. 128,255.00 | H36: =KursusOgRejseFaktisk[[#Totals],[Jun]]+MarketingFaktisk[[#Totals],[Jun]]+KontorFaktisk[[#Totals],[Jun]]+MedarbejderFaktisk[[#Totals],[Jun]] -> kr. 134,239.00 | I36: =KursusOgRejseFaktisk[[#Totals],[Jul]]+MarketingFaktisk[[#Totals],[Jul]]+KontorFaktisk[[#Totals],[Jul]]+MedarbejderFaktisk[[#Totals],[Jul]] -> kr. 0.00 | J36: =KursusOgRejseFaktisk[[#Totals],[Aug]]+MarketingFaktisk[[#Totals],[Aug]]+KontorFaktisk[[#Totals],[Aug]]+MedarbejderFaktisk[[#Totals],[Aug]] -> kr. 0.00 | K36: =KursusOgRejseFaktisk[[#Totals],[Sep]]+MarketingFaktisk[[#Totals],[Sep]]+KontorFaktisk[[#Totals],[Sep]]+MedarbejderFaktisk[[#Totals],[Sep]] -> kr. 0.00 | L36: =KursusOgRejseFaktisk[[#Totals],[Okt]]+MarketingFaktisk[[#Totals],[Okt]]+KontorFaktisk[[#Totals],[Okt]]+MedarbejderFaktisk[[#Totals],[Okt]] -> kr. 0.00 | M36: =KursusOgRejseFaktisk[[#Totals],[Nov]]+MarketingFaktisk[[#Totals],[Nov]]+KontorFaktisk[[#Totals],[Nov]]+MedarbejderFaktisk[[#Totals],[Nov]] -> kr. 0.00 | N36: =KursusOgRejseFaktisk[[#Totals],[Dec]]+MarketingFaktisk[[#Totals],[Dec]]+KontorFaktisk[[#Totals],[Dec]]+MedarbejderFaktisk[[#Totals],[Dec]] -> kr. 0.00 | O36: =KursusOgRejseFaktisk[[#Totals],[ÅR]]+MarketingFaktisk[[#Totals],[ÅR]]+KontorFaktisk[[#Totals],[ÅR]]+MedarbejderFaktisk[[#Totals],[ÅR]] -> kr. 782,939.00
B37: SAMLEDE faktiske udgifter | C37: =SUM($C$36:C36) -> kr. 129,682.00 | D37: =SUM($C$36:D36) -> kr. 257,486.00 | E37: =SUM($C$36:E36) -> kr. 383,051.00 | F37: =SUM($C$36:F36) -> kr. 520,445.00 | G37: =SUM($C$36:G36) -> kr. 648,700.00 | H37: =SUM($C$36:H36) -> kr. 782,939.00 | I37: =SUM($C$36:I36) -> kr. 782,939.00 | J37: =SUM($C$36:J36) -> kr. 782,939.00 | K37: =SUM($C$36:K36) -> kr. 782,939.00 | L37: =SUM($C$36:L36) -> kr. 782,939.00 | M37: =SUM($C$36:M36) -> kr. 782,939.00 | N37: =SUM($C$36:N36) -> kr. 782,939.00

Sheet UDGIFTSVARIANSER
B2: ='PLANLAGTE UDGIFTER'!B2:D3 -> Firmanavn | K2: =worksheet_title -> Detaljerede omkostningsestimater
K3: Skyggelagte celler er beregninger.
B4: UDGIFTSVARIANSER | C4: JAN | D4: FEB | E4: MAR | F4: APR | G4: MAJ | H4: JUN | I4: JUL | J4: AUG | K4: SEPT | L4: OKT | M4: NOV | N4: DEC | O4: ÅR
B5: Medarbejderomkostninger | C5: Jan | D5: Feb | E5: Mar | F5: Apr | G5: Maj | H5: Jun | I5: Jul | J5: Aug | K5: Sep | L5: Okt | M5: Nov | N5: Dec | O5: ÅR
B6: Lønninger | C6: =INDEX(MedarbejderPlan[],MATCH(INDEX(MedarbejderVarians[],ROW()-ROW(MedarbejderVarians[[#Headers],[Jan]]),1),INDEX(MedarbejderPlan[],,1),0),MATCH(MedarbejderVarians[[#Headers],[Jan]],MedarbejderPlan[#Headers],0))-INDEX(MedarbejderFaktisk[],MATCH(INDEX(MedarbejderVarians[],ROW()-ROW(MedarbejderVarians[[#Headers],[Jan]]),1),INDEX(MedarbejderPlan[],,1),0),MATCH(MedarbejderVarians[[#Headers],[Jan]],MedarbejderFaktisk[#Headers],0)) -> kr. 0.00 | D6: =INDEX(MedarbejderPlan[],MATCH(INDEX(MedarbejderVarians[],ROW()-ROW(MedarbejderVarians[[#Headers],[Feb]]),1),INDEX(MedarbejderPlan[],,1),0),MATCH(MedarbejderVarians[[#Headers],[Feb]],MedarbejderPlan[#Headers],0))-INDEX(MedarbejderFaktisk[],MATCH(INDEX(MedarbejderVarians[],ROW()-ROW(MedarbejderVarians[[#Headers],[Feb]]),1),INDEX(MedarbejderPlan[],,1),0),MATCH(MedarbejderVarians[[#Headers],[Feb]],MedarbejderFaktisk[#Headers],0)) -> kr. 0.00 | E6: =INDEX(MedarbejderPlan[],MATCH(INDEX(MedarbejderVarians[],ROW()-ROW(MedarbejderVarians[[#Headers],[Mar]]),1),INDEX(MedarbejderPlan[],,1),0),MATCH(MedarbejderVarians[[#Headers],[Mar]],MedarbejderPlan[#Headers],0))-INDEX(MedarbejderFaktisk[],MATCH(INDEX(MedarbejderVarians[],ROW()-ROW(MedarbejderVarians[[#Headers],[Mar]]),1),INDEX(MedarbejderPlan[],,1),0),MATCH(MedarbejderVarians[[#Headers],[Mar]],MedarbejderFaktisk[#Headers],0)) -> kr. 0.00 | F6: =INDEX(MedarbejderPlan[],MATCH(INDEX(MedarbejderVarians[],ROW()-ROW(MedarbejderVarians[[#Headers],[Apr]]),1),INDEX(MedarbejderPlan[],,1),0),MATCH(MedarbejderVarians[[#Headers],[Apr]],MedarbejderPlan[#Headers],0))-INDEX(MedarbejderFaktisk[],MATCH(INDEX(MedarbejderVarians[],ROW()-ROW(MedarbejderVarians[[#Headers],[Apr]]),1),INDEX(MedarbejderPlan[],,1),0),MATCH(MedarbejderVarians[[#Headers],[Apr]],MedarbejderFaktisk[#Headers],0)) -> kr. -500.00 | G6: =INDEX(MedarbejderPlan[],MATCH(INDEX(MedarbejderVarians[],ROW()-ROW(MedarbejderVarians[[#Headers],[Maj]]),1),INDEX(MedarbejderPlan[],,1),0),MATCH(MedarbejderVarians[[#Headers],[Maj]],MedarbejderPlan[#Headers],0))-INDEX(MedarbejderFaktisk[],MATCH(INDEX(MedarbejderVarians[],ROW()-ROW(MedarbejderVarians[[#Headers],[Maj]]),1),INDEX(MedarbejderPlan[],,1),0),MATCH(MedarbejderVarians[[#Headers],[Maj]],MedarbejderFaktisk[#Headers],0)) -> kr. -500.00 | H6: =INDEX(MedarbejderPlan[],MATCH(INDEX(MedarbejderVarians[],ROW()-ROW(MedarbejderVarians[[#Headers],[Jun]]),1),INDEX(MedarbejderPlan[],,1),0),MATCH(MedarbejderVarians[[#Headers],[Jun]],MedarbejderPlan[#Headers],0))-INDEX(MedarbejderFaktisk[],MATCH(INDEX(MedarbejderVarians[],ROW()-ROW(MedarbejderVarians[[#Headers],[Jun]]),1),INDEX(MedarbejderPlan[],,1),0),MATCH(MedarbejderVarians[[#Headers],[Jun]],MedarbejderFaktisk[#Headers],0)) -> kr. -500.00 | I6: =INDEX(MedarbejderPlan[],MATCH(INDEX(MedarbejderVarians[],ROW()-ROW(MedarbejderVarians[[#Headers],[Jul]]),1),INDEX(MedarbejderPlan[],,1),0),MATCH(MedarbejderVarians[[#Headers],[Jul]],MedarbejderPlan[#Headers],0))-INDEX(MedarbejderFaktisk[],MATCH(INDEX(MedarbejderVarians[],ROW()-ROW(MedarbejderVarians[[#Headers],[Jul]]),1),INDEX(MedarbejderPlan[],,1),0),MATCH(MedarbejderVarians[[#Headers],[Jul]],MedarbejderFaktisk[#Headers],0)) -> kr. 87,500.00 | J6: =INDEX(MedarbejderPlan[],MATCH(INDEX(MedarbejderVarians[],ROW()-ROW(MedarbejderVarians[[#Headers],[Aug]]),1),INDEX(MedarbejderPlan[],,1),0),MATCH(MedarbejderVarians[[#Headers],[Aug]],MedarbejderPlan[#Headers],0))-INDEX(MedarbejderFaktisk[],MATCH(INDEX(MedarbejderVarians[],ROW()-ROW(MedarbejderVarians[[#Headers],[Aug]]),1),INDEX(MedarbejderPlan[],,1),0),MATCH(MedarbejderVarians[[#Headers],[Aug]],MedarbejderFaktisk[#Headers],0)) -> kr. 92,400.00 | K6: =INDEX(MedarbejderPlan[],MATCH(INDEX(MedarbejderVarians[],ROW()-ROW(MedarbejderVarians[[#Headers],[Sep]]),1),INDEX(MedarbejderPlan[],,1),0),MATCH(MedarbejderVarians[[#Headers],[Sep]],MedarbejderPlan[#Headers],0))-INDEX(MedarbejderFaktisk[],MATCH(INDEX(MedarbejderVarians[],ROW()-ROW(MedarbejderVarians[[#Headers],[Sep]]),1),INDEX(MedarbejderPlan[],,1),0),MATCH(MedarbejderVarians[[#Headers],[Sep]],MedarbejderFaktisk[#Headers],0)) -> kr. 92,400.00 | L6: =INDEX(MedarbejderPlan[],MATCH(INDEX(MedarbejderVarians[],ROW()-ROW(MedarbejderVarians[[#Headers],[Okt]]),1),INDEX(MedarbejderPlan[],,1),0),MATCH(MedarbejderVarians[[#Headers],[Okt]],MedarbejderPlan[#Headers],0))-INDEX(MedarbejderFaktisk[],MATCH(INDEX(MedarbejderVarians[],ROW()-ROW(MedarbejderVarians[[#Headers],[Okt]]),1),INDEX(MedarbejderPlan[],,1),0),MATCH(MedarbejderVarians[[#Headers],[Okt]],MedarbejderFaktisk[#Headers],0)) -> kr. 92,400.00 | M6: =INDEX(MedarbejderPlan[],MATCH(INDEX(MedarbejderVarians[],ROW()-ROW(MedarbejderVarians[[#Headers],[Nov]]),1),INDEX(MedarbejderPlan[],,1),0),MATCH(MedarbejderVarians[[#Headers],[Nov]],MedarbejderPlan[#Headers],0))-INDEX(MedarbejderFaktisk[],MATCH(INDEX(MedarbejderVarians[],ROW()-ROW(MedarbejderVarians[[#Headers],[Nov]]),1),INDEX(MedarbejderPlan[],,1),0),MATCH(MedarbejderVarians[[#Headers],[Nov]],MedarbejderFaktisk[#Headers],0)) -> kr. 92,400.00 | N6: =INDEX(MedarbejderPlan[],MATCH(INDEX(MedarbejderVarians[],ROW()-ROW(MedarbejderVarians[[#Headers],[Dec]]),1),INDEX(MedarbejderPlan[],,1),0),MATCH(MedarbejderVarians[[#Headers],[Dec]],MedarbejderPlan[#Headers],0))-INDEX(MedarbejderFaktisk[],MATCH(INDEX(MedarbejderVarians[],ROW()-ROW(MedarbejderVarians[[#Headers],[Dec]]),1),INDEX(MedarbejderPlan[],,1),0),MATCH(MedarbejderVarians[[#Headers],[Dec]],MedarbejderFaktisk[#Headers],0)) -> kr. 92,400.00 | O6: =SUM(MedarbejderVarians[[#This Row],[Jan]:[Dec]]) -> kr. 548,000.00
B7: Arbejdsgoder | C7: =INDEX(MedarbejderPlan[],MATCH(INDEX(MedarbejderVarians[],ROW()-ROW(MedarbejderVarians[[#Headers],[Jan]]),1),INDEX(MedarbejderPlan[],,1),0),MATCH(MedarbejderVarians[[#Headers],[Jan]],MedarbejderPlan[#Headers],0))-INDEX(MedarbejderFaktisk[],MATCH(INDEX(MedarbejderVarians[],ROW()-ROW(MedarbejderVarians[[#Headers],[Jan]]),1),INDEX(MedarbejderPlan[],,1),0),MATCH(MedarbejderVarians[[#Headers],[Jan]],MedarbejderFaktisk[#Headers],0)) -> kr. 0.00 | D7: =INDEX(MedarbejderPlan[],MATCH(INDEX(MedarbejderVarians[],ROW()-ROW(MedarbejderVarians[[#Headers],[Feb]]),1),INDEX(MedarbejderPlan[],,1),0),MATCH(MedarbejderVarians[[#Headers],[Feb]],MedarbejderPlan[#Headers],0))-INDEX(MedarbejderFaktisk[],MATCH(INDEX(MedarbejderVarians[],ROW()-ROW(MedarbejderVarians[[#Headers],[Feb]]),1),INDEX(MedarbejderPlan[],,1),0),MATCH(MedarbejderVarians[[#Headers],[Feb]],MedarbejderFaktisk[#Headers],0)) -> kr. 0.00 | E7: =INDEX(MedarbejderPlan[],MATCH(INDEX(MedarbejderVarians[],ROW()-ROW(MedarbejderVarians[[#Headers],[Mar]]),1),INDEX(MedarbejderPlan[],,1),0),MATCH(MedarbejderVarians[[#Headers],[Mar]],MedarbejderPlan[#Headers],0))-INDEX(MedarbejderFaktisk[],MATCH(INDEX(MedarbejderVarians[],ROW()-ROW(MedarbejderVarians[[#Headers],[Mar]]),1),INDEX(MedarbejderPlan[],,1),0),MATCH(MedarbejderVarians[[#Headers],[Mar]],MedarbejderFaktisk[#Headers],0)) -> kr. 0.00 | F7: =INDEX(MedarbejderPlan[],MATCH(INDEX(MedarbejderVarians[],ROW()-ROW(MedarbejderVarians[[#Headers],[Apr]]),1),INDEX(MedarbejderPlan[],,1),0),MATCH(MedarbejderVarians[[#Headers],[Apr]],MedarbejderPlan[#Headers],0))-INDEX(MedarbejderFaktisk[],MATCH(INDEX(MedarbejderVarians[],ROW()-ROW(MedarbejderVarians[[#Headers],[Apr]]),1),INDEX(MedarbejderPlan[],,1),0),MATCH(MedarbejderVarians[[#Headers],[Apr]],MedarbejderFaktisk[#Headers],0)) -> kr. -135.00 | G7: =INDEX(MedarbejderPlan[],MATCH(INDEX(MedarbejderVarians[],ROW()-ROW(MedarbejderVarians[[#Headers],[Maj]]),1),INDEX(MedarbejderPlan[],,1),0),MATCH(MedarbejderVarians[[#Headers],[Maj]],MedarbejderPlan[#Headers],0))-INDEX(MedarbejderFaktisk[],MATCH(INDEX(MedarbejderVarians[],ROW()-ROW(MedarbejderVarians[[#Headers],[Maj]]),1),INDEX(MedarbejderPlan[],,1),0),MATCH(MedarbejderVarians[[#Headers],[Maj]],MedarbejderFaktisk[#Headers],0)) -> kr. -135.00 | H7: =INDEX(MedarbejderPlan[],MATCH(INDEX(MedarbejderVarians[],ROW()-ROW(MedarbejderVarians[[#Headers],[Jun]]),1),INDEX(MedarbejderPlan[],,1),0),MATCH(MedarbejderVarians[[#Headers],[Jun]],MedarbejderPlan[#Headers],0))-INDEX(MedarbejderFaktisk[],MATCH(INDEX(MedarbejderVarians[],ROW()-ROW(MedarbejderVarians[[#Headers],[Jun]]),1),INDEX(MedarbejderPlan[],,1),0),MATCH(MedarbejderVarians[[#Headers],[Jun]],MedarbejderFaktisk[#Headers],0)) -> kr. -135.00 | I7: =INDEX(MedarbejderPlan[],MATCH(INDEX(MedarbejderVarians[],ROW()-ROW(MedarbejderVarians[[#Headers],[Jul]]),1),INDEX(MedarbejderPlan[],,1),0),MATCH(MedarbejderVarians[[#Headers],[Jul]],MedarbejderPlan[#Headers],0))-INDEX(MedarbejderFaktisk[],MATCH(INDEX(MedarbejderVarians[],ROW()-ROW(MedarbejderVarians[[#Headers],[Jul]]),1),INDEX(MedarbejderPlan[],,1),0),MATCH(MedarbejderVarians[[#Headers],[Jul]],MedarbejderFaktisk[#Headers],0)) -> kr. 23,625.00 | J7: =INDEX(MedarbejderPlan[],MATCH(INDEX(MedarbejderVarians[],ROW()-ROW(MedarbejderVarians[[#Headers],[Aug]]),1),INDEX(MedarbejderPlan[],,1),0),MATCH(MedarbejderVarians[[#Headers],[Aug]],MedarbejderPlan[#Headers],0))-INDEX(MedarbejderFaktisk[],MATCH(INDEX(MedarbejderVarians[],ROW()-ROW(MedarbejderVarians[[#Headers],[Aug]]),1),INDEX(MedarbejderPlan[],,1),0),MATCH(MedarbejderVarians[[#Headers],[Aug]],MedarbejderFaktisk[#Headers],0)) -> kr. 24,948.00 | K7: =INDEX(MedarbejderPlan[],MATCH(INDEX(MedarbejderVarians[],ROW()-ROW(MedarbejderVarians[[#Headers],[Sep]]),1),INDEX(MedarbejderPlan[],,1),0),MATCH(MedarbejderVarians[[#Headers],[Sep]],MedarbejderPlan[#Headers],0))-INDEX(MedarbejderFaktisk[],MATCH(INDEX(MedarbejderVarians[],ROW()-ROW(MedarbejderVarians[[#Headers],[Sep]]),1),INDEX(MedarbejderPlan[],,1),0),MATCH(MedarbejderVarians[[#Headers],[Sep]],MedarbejderFaktisk[#Headers],0)) -> kr. 24,948.00 | L7: =INDEX(MedarbejderPlan[],MATCH(INDEX(MedarbejderVarians[],ROW()-ROW(MedarbejderVarians[[#Headers],[Okt]]),1),INDEX(MedarbejderPlan[],,1),0),MATCH(MedarbejderVarians[[#Headers],[Okt]],MedarbejderPlan[#Headers],0))-INDEX(MedarbejderFaktisk[],MATCH(INDEX(MedarbejderVarians[],ROW()-ROW(MedarbejderVarians[[#Headers],[Okt]]),1),INDEX(MedarbejderPlan[],,1),0),MATCH(MedarbejderVarians[[#Headers],[Okt]],MedarbejderFaktisk[#Headers],0)) -> kr. 24,948.00 | M7: =INDEX(MedarbejderPlan[],MATCH(INDEX(MedarbejderVarians[],ROW()-ROW(MedarbejderVarians[[#Headers],[Nov]]),1),INDEX(MedarbejderPlan[],,1),0),MATCH(MedarbejderVarians[[#Headers],[Nov]],MedarbejderPlan[#Headers],0))-INDEX(MedarbejderFaktisk[],MATCH(INDEX(MedarbejderVarians[],ROW()-ROW(MedarbejderVarians[[#Headers],[Nov]]),1),INDEX(MedarbejderPlan[],,1),0),MATCH(MedarbejderVarians[[#Headers],[Nov]],MedarbejderFaktisk[#Headers],0)) -> kr. 24,948.00 | N7: =INDEX(MedarbejderPlan[],MATCH(INDEX(MedarbejderVarians[],ROW()-ROW(MedarbejderVarians[[#Headers],[Dec]]),1),INDEX(MedarbejderPlan[],,1),0),MATCH(MedarbejderVarians[[#Headers],[Dec]],MedarbejderPlan[#Headers],0))-INDEX(MedarbejderFaktisk[],MATCH(INDEX(MedarbejderVarians[],ROW()-ROW(MedarbejderVarians[[#Headers],[Dec]]),1),INDEX(MedarbejderPlan[],,1),0),MATCH(MedarbejderVarians[[#Headers],[Dec]],MedarbejderFaktisk[#Headers],0)) -> kr. 24,948.00 | O7: =SUM(MedarbejderVarians[[#This Row],[Jan]:[Dec]]) -> kr. 147,960.00
B8: Subtotal | C8: =SUBTOTAL(109,MedarbejderVarians[Jan]) -> kr. 0.00 | D8: =SUBTOTAL(109,MedarbejderVarians[Feb]) -> kr. 0.00 | E8: =SUBTOTAL(109,MedarbejderVarians[Mar]) -> kr. 0.00 | F8: =SUBTOTAL(109,MedarbejderVarians[Apr]) -> kr. -635.00 | G8: =SUBTOTAL(109,MedarbejderVarians[Maj]) -> kr. -635.00 | H8: =SUBTOTAL(109,MedarbejderVarians[Jun]) -> kr. -635.00 | I8: =SUBTOTAL(109,MedarbejderVarians[Jul]) -> kr. 111,125.00 | J8: =SUBTOTAL(109,MedarbejderVarians[Aug]) -> kr. 117,348.00 | K8: =SUBTOTAL(109,MedarbejderVarians[Sep]) -> kr. 117,348.00 | L8: =SUBTOTAL(109,MedarbejderVarians[Okt]) -> kr. 117,348.00 | M8: =SUBTOTAL(109,MedarbejderVarians[Nov]) -> kr. 117,348.00 | N8: =SUBTOTAL(109,MedarbejderVarians[Dec]) -> kr. 117,348.00 | O8: =SUBTOTAL(109,MedarbejderVarians[ÅR]) -> kr. 695,960.00
B10: Kontoromkostninger | C10: Jan | D10: Feb | E10: Mar | F10: Apr | G10: Maj | H10: Jun | I10: Jul | J10: Aug | K10: Sep | L10: Okt | M10: Nov | N10: Dec | O10: ÅR
B11: Leje af kontor | C11: =INDEX(KontorPlan[],MATCH(INDEX(KontorVarians[],ROW()-ROW(KontorVarians[[#Headers],[Jan]]),1),INDEX(KontorPlan[],,1),0),MATCH(KontorVarians[[#Headers],[Jan]],KontorPlan[#Headers],0))-INDEX(KontorFaktisk[],MATCH(INDEX(KontorVarians[],ROW()-ROW(KontorVarians[[#Headers],[Jan]]),1),INDEX(KontorPlan[],,1),0),MATCH(KontorVarians[[#Headers],[Jan]],KontorFaktisk[#Headers],0)) -> kr. 0.00 | D11: =INDEX(KontorPlan[],MATCH(INDEX(KontorVarians[],ROW()-ROW(KontorVarians[[#Headers],[Feb]]),1),INDEX(KontorPlan[],,1),0),MATCH(KontorVarians[[#Headers],[Feb]],KontorPlan[#Headers],0))-INDEX(KontorFaktisk[],MATCH(INDEX(KontorVarians[],ROW()-ROW(KontorVarians[[#Headers],[Feb]]),1),INDEX(KontorPlan[],,1),0),MATCH(KontorVarians[[#Headers],[Feb]],KontorFaktisk[#Headers],0)) -> kr. 0.00 | E11: =INDEX(KontorPlan[],MATCH(INDEX(KontorVarians[],ROW()-ROW(KontorVarians[[#Headers],[Mar]]),1),INDEX(KontorPlan[],,1),0),MATCH(KontorVarians[[#Headers],[Mar]],KontorPlan[#Headers],0))-INDEX(KontorFaktisk[],MATCH(INDEX(KontorVarians[],ROW()-ROW(KontorVarians[[#Headers],[Mar]]),1),INDEX(KontorPlan[],,1),0),MATCH(KontorVarians[[#Headers],[Mar]],KontorFaktisk[#Headers],0)) -> kr. 0.00 | F11: =INDEX(KontorPlan[],MATCH(INDEX(KontorVarians[],ROW()-ROW(KontorVarians[[#Headers],[Apr]]),1),INDEX(KontorPlan[],,1),0),MATCH(KontorVarians[[#Headers],[Apr]],KontorPlan[#Headers],0))-INDEX(KontorFaktisk[],MATCH(INDEX(KontorVarians[],ROW()-ROW(KontorVarians[[#Headers],[Apr]]),1),INDEX(KontorPlan[],,1),0),MATCH(KontorVarians[[#Headers],[Apr]],KontorFaktisk[#Headers],0)) -> kr. 0.00 | G11: =INDEX(KontorPlan[],MATCH(INDEX(KontorVarians[],ROW()-ROW(KontorVarians[[#Headers],[Maj]]),1),INDEX(KontorPlan[],,1),0),MATCH(KontorVarians[[#Headers],[Maj]],KontorPlan[#Headers],0))-INDEX(KontorFaktisk[],MATCH(INDEX(KontorVarians[],ROW()-ROW(KontorVarians[[#Headers],[Maj]]),1),INDEX(KontorPlan[],,1),0),MATCH(KontorVarians[[#Headers],[Maj]],KontorFaktisk[#Headers],0)) -> kr. 0.00 | H11: =INDEX(KontorPlan[],MATCH(INDEX(KontorVarians[],ROW()-ROW(KontorVarians[[#Headers],[Jun]]),1),INDEX(KontorPlan[],,1),0),MATCH(KontorVarians[[#Headers],[Jun]],KontorPlan[#Headers],0))-INDEX(KontorFaktisk[],MATCH(INDEX(KontorVarians[],ROW()-ROW(KontorVarians[[#Headers],[Jun]]),1),INDEX(KontorPlan[],,1),0),MATCH(KontorVarians[[#Headers],[Jun]],KontorFaktisk[#Headers],0)) -> kr. 0.00 | I11: =INDEX(KontorPlan[],MATCH(INDEX(KontorVarians[],ROW()-ROW(KontorVarians[[#Headers],[Jul]]),1),INDEX(KontorPlan[],,1),0),MATCH(KontorVarians[[#Headers],[Jul]],KontorPlan[#Headers],0))-INDEX(KontorFaktisk[],MATCH(INDEX(KontorVarians[],ROW()-ROW(KontorVarians[[#Headers],[Jul]]),1),INDEX(KontorPlan[],,1),0),MATCH(KontorVarians[[#Headers],[Jul]],KontorFaktisk[#Headers],0)) -> kr. 9,800.00 | J11: =INDEX(KontorPlan[],MATCH(INDEX(KontorVarians[],ROW()-ROW(KontorVarians[[#Headers],[Aug]]),1),INDEX(KontorPlan[],,1),0),MATCH(KontorVarians[[#Headers],[Aug]],KontorPlan[#Headers],0))-INDEX(KontorFaktisk[],MATCH(INDEX(KontorVarians[],ROW()-ROW(KontorVarians[[#Headers],[Aug]]),1),INDEX(KontorPlan[],,1),0),MATCH(KontorVarians[[#Headers],[Aug]],KontorFaktisk[#Headers],0)) -> kr. 9,800.00 | K11: =INDEX(KontorPlan[],MATCH(INDEX(KontorVarians[],ROW()-ROW(KontorVarians[[#Headers],[Sep]]),1),INDEX(KontorPlan[],,1),0),MATCH(KontorVarians[[#Headers],[Sep]],KontorPlan[#Headers],0))-INDEX(KontorFaktisk[],MATCH(INDEX(KontorVarians[],ROW()-ROW(KontorVarians[[#Headers],[Sep]]),1),INDEX(KontorPlan[],,1),0),MATCH(KontorVarians[[#Headers],[Sep]],KontorFaktisk[#Headers],0)) -> kr. 9,800.00 | L11: =INDEX(KontorPlan[],MATCH(INDEX(KontorVarians[],ROW()-ROW(KontorVarians[[#Headers],[Okt]]),1),INDEX(KontorPlan[],,1),0),MATCH(KontorVarians[[#Headers],[Okt]],KontorPlan[#Headers],0))-INDEX(KontorFaktisk[],MATCH(INDEX(KontorVarians[],ROW()-ROW(KontorVarians[[#Headers],[Okt]]),1),INDEX(KontorPlan[],,1),0),MATCH(KontorVarians[[#Headers],[Okt]],KontorFaktisk[#Headers],0)) -> kr. 9,800.00 | M11: =INDEX(KontorPlan[],MATCH(INDEX(KontorVarians[],ROW()-ROW(KontorVarians[[#Headers],[Nov]]),1),INDEX(KontorPlan[],,1),0),MATCH(KontorVarians[[#Headers],[Nov]],KontorPlan[#Headers],0))-INDEX(KontorFaktisk[],MATCH(INDEX(KontorVarians[],ROW()-ROW(KontorVarians[[#Headers],[Nov]]),1),INDEX(KontorPlan[],,1),0),MATCH(KontorVarians[[#Headers],[Nov]],KontorFaktisk[#Headers],0)) -> kr. 9,800.00 | N11: =INDEX(KontorPlan[],MATCH(INDEX(KontorVarians[],ROW()-ROW(KontorVarians[[#Headers],[Dec]]),1),INDEX(KontorPlan[],,1),0),MATCH(KontorVarians[[#Headers],[Dec]],KontorPlan[#Headers],0))-INDEX(KontorFaktisk[],MATCH(INDEX(KontorVarians[],ROW()-ROW(KontorVarians[[#Headers],[Dec]]),1),INDEX(KontorPlan[],,1),0),MATCH(KontorVarians[[#Headers],[Dec]],KontorFaktisk[#Headers],0)) -> kr. 9,800.00 | O11: =SUM(KontorVarians[[#This Row],[Jan]:[Dec]]) -> kr. 58,800.00
B12: Benzin | C12: =INDEX(KontorPlan[],MATCH(INDEX(KontorVarians[],ROW()-ROW(KontorVarians[[#Headers],[Jan]]),1),INDEX(KontorPlan[],,1),0),MATCH(KontorVarians[[#Headers],[Jan]],KontorPlan[#Headers],0))-INDEX(KontorFaktisk[],MATCH(INDEX(KontorVarians[],ROW()-ROW(KontorVarians[[#Headers],[Jan]]),1),INDEX(KontorPlan[],,1),0),MATCH(KontorVarians[[#Headers],[Jan]],KontorFaktisk[#Headers],0)) -> kr. -4.00 | D12: =INDEX(KontorPlan[],MATCH(INDEX(KontorVarians[],ROW()-ROW(KontorVarians[[#Headers],[Feb]]),1),INDEX(KontorPlan[],,1),0),MATCH(KontorVarians[[#Headers],[Feb]],KontorPlan[#Headers],0))-INDEX(KontorFaktisk[],MATCH(INDEX(KontorVarians[],ROW()-ROW(KontorVarians[[#Headers],[Feb]]),1),INDEX(KontorPlan[],,1),0),MATCH(KontorVarians[[#Headers],[Feb]],KontorFaktisk[#Headers],0)) -> kr. -30.00 | E12: =INDEX(KontorPlan[],MATCH(INDEX(KontorVarians[],ROW()-ROW(KontorVarians[[#Headers],[Mar]]),1),INDEX(KontorPlan[],,1),0),MATCH(KontorVarians[[#Headers],[Mar]],KontorPlan[#Headers],0))-INDEX(KontorFaktisk[],MATCH(INDEX(KontorVarians[],ROW()-ROW(KontorVarians[[#Headers],[Mar]]),1),INDEX(KontorPlan[],,1),0),MATCH(KontorVarians[[#Headers],[Mar]],KontorFaktisk[#Headers],0)) -> kr. 15.00 | F12: =INDEX(KontorPlan[],MATCH(INDEX(KontorVarians[],ROW()-ROW(KontorVarians[[#Headers],[Apr]]),1),INDEX(KontorPlan[],,1),0),MATCH(KontorVarians[[#Headers],[Apr]],KontorPlan[#Headers],0))-INDEX(KontorFaktisk[],MATCH(INDEX(KontorVarians[],ROW()-ROW(KontorVarians[[#Headers],[Apr]]),1),INDEX(KontorPlan[],,1),0),MATCH(KontorVarians[[#Headers],[Apr]],KontorFaktisk[#Headers],0)) -> kr. -130.00 | G12: =INDEX(KontorPlan[],MATCH(INDEX(KontorVarians[],ROW()-ROW(KontorVarians[[#Headers],[Maj]]),1),INDEX(KontorPlan[],,1),0),MATCH(KontorVarians[[#Headers],[Maj]],KontorPlan[#Headers],0))-INDEX(KontorFaktisk[],MATCH(INDEX(KontorVarians[],ROW()-ROW(KontorVarians[[#Headers],[Maj]]),1),INDEX(KontorPlan[],,1),0),MATCH(KontorVarians[[#Headers],[Maj]],KontorFaktisk[#Headers],0)) -> kr. 13.00 | H12: =INDEX(KontorPlan[],MATCH(INDEX(KontorVarians[],ROW()-ROW(KontorVarians[[#Headers],[Jun]]),1),INDEX(KontorPlan[],,1),0),MATCH(KontorVarians[[#Headers],[Jun]],KontorPlan[#Headers],0))-INDEX(KontorFaktisk[],MATCH(INDEX(KontorVarians[],ROW()-ROW(KontorVarians[[#Headers],[Jun]]),1),INDEX(KontorPlan[],,1),0),MATCH(KontorVarians[[#Headers],[Jun]],KontorFaktisk[#Headers],0)) -> kr. 12.00 | I12: =INDEX(KontorPlan[],MATCH(INDEX(KontorVarians[],ROW()-ROW(KontorVarians[[#Headers],[Jul]]),1),INDEX(KontorPlan[],,1),0),MATCH(KontorVarians[[#Headers],[Jul]],KontorPlan[#Headers],0))-INDEX(KontorFaktisk[],MATCH(INDEX(KontorVarians[],ROW()-ROW(KontorVarians[[#Headers],[Jul]]),1),INDEX(KontorPlan[],,1),0),MATCH(KontorVarians[[#Headers],[Jul]],KontorFaktisk[#Headers],0)) -> kr. 100.00 | J12: =INDEX(KontorPlan[],MATCH(INDEX(KontorVarians[],ROW()-ROW(KontorVarians[[#Headers],[Aug]]),1),INDEX(KontorPlan[],,1),0),MATCH(KontorVarians[[#Headers],[Aug]],KontorPlan[#Headers],0))-INDEX(KontorFaktisk[],MATCH(INDEX(KontorVarians[],ROW()-ROW(KontorVarians[[#Headers],[Aug]]),1),INDEX(KontorPlan[],,1),0),MATCH(KontorVarians[[#Headers],[Aug]],KontorFaktisk[#Headers],0)) -> kr. 100.00 | K12: =INDEX(KontorPlan[],MATCH(INDEX(KontorVarians[],ROW()-ROW(KontorVarians[[#Headers],[Sep]]),1),INDEX(KontorPlan[],,1),0),MATCH(KontorVarians[[#Headers],[Sep]],KontorPlan[#Headers],0))-INDEX(KontorFaktisk[],MATCH(INDEX(KontorVarians[],ROW()-ROW(KontorVarians[[#Headers],[Sep]]),1),INDEX(KontorPlan[],,1),0),MATCH(KontorVarians[[#Headers],[Sep]],KontorFaktisk[#Headers],0)) -> kr. 100.00 | L12: =INDEX(KontorPlan[],MATCH(INDEX(KontorVarians[],ROW()-ROW(KontorVarians[[#Headers],[Okt]]),1),INDEX(KontorPlan[],,1),0),MATCH(KontorVarians[[#Headers],[Okt]],KontorPlan[#Headers],0))-INDEX(KontorFaktisk[],MATCH(INDEX(KontorVarians[],ROW()-ROW(KontorVarians[[#Headers],[Okt]]),1),INDEX(KontorPlan[],,1),0),MATCH(KontorVarians[[#Headers],[Okt]],KontorFaktisk[#Headers],0)) -> kr. 100.00 | M12: =INDEX(KontorPlan[],MATCH(INDEX(KontorVarians[],ROW()-ROW(KontorVarians[[#Headers],[Nov]]),1),INDEX(KontorPlan[],,1),0),MATCH(KontorVarians[[#Headers],[Nov]],KontorPlan[#Headers],0))-INDEX(KontorFaktisk[],MATCH(INDEX(KontorVarians[],ROW()-ROW(KontorVarians[[#Headers],[Nov]]),1),INDEX(KontorPlan[],,1),0),MATCH(KontorVarians[[#Headers],[Nov]],KontorFaktisk[#Headers],0)) -> kr. 400.00 | N12: =INDEX(KontorPlan[],MATCH(INDEX(KontorVarians[],ROW()-ROW(KontorVarians[[#Headers],[Dec]]),1),INDEX(KontorPlan[],,1),0),MATCH(KontorVarians[[#Headers],[Dec]],KontorPlan[#Headers],0))-INDEX(KontorFaktisk[],MATCH(INDEX(KontorVarians[],ROW()-ROW(KontorVarians[[#Headers],[Dec]]),1),INDEX(KontorPlan[],,1),0),MATCH(KontorVarians[[#Headers],[Dec]],KontorFaktisk[#Headers],0)) -> kr. 400.00 | O12: =SUM(KontorVarians[[#This Row],[Jan]:[Dec]]) -> kr. 1,076.00
B13: Elektricitet | C13: =INDEX(KontorPlan[],MATCH(INDEX(KontorVarians[],ROW()-ROW(KontorVarians[[#Headers],[Jan]]),1),INDEX(KontorPlan[],,1),0),MATCH(KontorVarians[[#Headers],[Jan]],KontorPlan[#Headers],0))-INDEX(KontorFaktisk[],MATCH(INDEX(KontorVarians[],ROW()-ROW(KontorVarians[[#Headers],[Jan]]),1),INDEX(KontorPlan[],,1),0),MATCH(KontorVarians[[#Headers],[Jan]],KontorFaktisk[#Headers],0)) -> kr. 12.00 | D13: =INDEX(KontorPlan[],MATCH(INDEX(KontorVarians[],ROW()-ROW(KontorVarians[[#Headers],[Feb]]),1),INDEX(KontorPlan[],,1),0),MATCH(KontorVarians[[#Headers],[Feb]],KontorPlan[#Headers],0))-INDEX(KontorFaktisk[],MATCH(INDEX(KontorVarians[],ROW()-ROW(KontorVarians[[#Headers],[Feb]]),1),INDEX(KontorPlan[],,1),0),MATCH(KontorVarians[[#Headers],[Feb]],KontorFaktisk[#Headers],0)) -> kr. 22.00 | E13: =INDEX(KontorPlan[],MATCH(INDEX(KontorVarians[],ROW()-ROW(KontorVarians[[#Headers],[Mar]]),1),INDEX(KontorPlan[],,1),0),MATCH(KontorVarians[[#Headers],[Mar]],KontorPlan[#Headers],0))-INDEX(KontorFaktisk[],MATCH(INDEX(KontorVarians[],ROW()-ROW(KontorVarians[[#Headers],[Mar]]),1),INDEX(KontorPlan[],,1),0),MATCH(KontorVarians[[#Headers],[Mar]],KontorFaktisk[#Headers],0)) -> kr. 32.00 | F13: =INDEX(KontorPlan[],MATCH(INDEX(KontorVarians[],ROW()-ROW(KontorVarians[[#Headers],[Apr]]),1),INDEX(KontorPlan[],,1),0),MATCH(KontorVarians[[#Headers],[Apr]],KontorPlan[#Headers],0))-INDEX(KontorFaktisk[],MATCH(INDEX(KontorVarians[],ROW()-ROW(KontorVarians[[#Headers],[Apr]]),1),INDEX(KontorPlan[],,1),0),MATCH(KontorVarians[[#Headers],[Apr]],KontorFaktisk[#Headers],0)) -> kr. 1.00 | G13: =INDEX(KontorPlan[],MATCH(INDEX(KontorVarians[],ROW()-ROW(KontorVarians[[#Headers],[Maj]]),1),INDEX(KontorPlan[],,1),0),MATCH(KontorVarians[[#Headers],[Maj]],KontorPlan[#Headers],0))-INDEX(KontorFaktisk[],MATCH(INDEX(KontorVarians[],ROW()-ROW(KontorVarians[[#Headers],[Maj]]),1),INDEX(KontorPlan[],,1),0),MATCH(KontorVarians[[#Headers],[Maj]],KontorFaktisk[#Headers],0)) -> kr. -6.00 | H13: =INDEX(KontorPlan[],MATCH(INDEX(KontorVarians[],ROW()-ROW(KontorVarians[[#Headers],[Jun]]),1),INDEX(KontorPlan[],,1),0),MATCH(KontorVarians[[#Headers],[Jun]],KontorPlan[#Headers],0))-INDEX(KontorFaktisk[],MATCH(INDEX(KontorVarians[],ROW()-ROW(KontorVarians[[#Headers],[Jun]]),1),INDEX(KontorPlan[],,1),0),MATCH(KontorVarians[[#Headers],[Jun]],KontorFaktisk[#Headers],0)) -> kr. 10.00 | I13: =INDEX(KontorPlan[],MATCH(INDEX(KontorVarians[],ROW()-ROW(KontorVarians[[#Headers],[Jul]]),1),INDEX(KontorPlan[],,1),0),MATCH(KontorVarians[[#Headers],[Jul]],KontorPlan[#Headers],0))-INDEX(KontorFaktisk[],MATCH(INDEX(KontorVarians[],ROW()-ROW(KontorVarians[[#Headers],[Jul]]),1),INDEX(KontorPlan[],,1),0),MATCH(KontorVarians[[#Headers],[Jul]],KontorFaktisk[#Headers],0)) -> kr. 300.00 | J13: =INDEX(KontorPlan[],MATCH(INDEX(KontorVarians[],ROW()-ROW(KontorVarians[[#Headers],[Aug]]),1),INDEX(KontorPlan[],,1),0),MATCH(KontorVarians[[#Headers],[Aug]],KontorPlan[#Headers],0))-INDEX(KontorFaktisk[],MATCH(INDEX(KontorVarians[],ROW()-ROW(KontorVarians[[#Headers],[Aug]]),1),INDEX(KontorPlan[],,1),0),MATCH(KontorVarians[[#Headers],[Aug]],KontorFaktisk[#Headers],0)) -> kr. 300.00 | K13: =INDEX(KontorPlan[],MATCH(INDEX(KontorVarians[],ROW()-ROW(KontorVarians[[#Headers],[Sep]]),1),INDEX(KontorPlan[],,1),0),MATCH(KontorVarians[[#Headers],[Sep]],KontorPlan[#Headers],0))-INDEX(KontorFaktisk[],MATCH(INDEX(KontorVarians[],ROW()-ROW(KontorVarians[[#Headers],[Sep]]),1),INDEX(KontorPlan[],,1),0),MATCH(KontorVarians[[#Headers],[Sep]],KontorFaktisk[#Headers],0)) -> kr. 300.00 | L13: =INDEX(KontorPlan[],MATCH(INDEX(KontorVarians[],ROW()-ROW(KontorVarians[[#Headers],[Okt]]),1),INDEX(KontorPlan[],,1),0),MATCH(KontorVarians[[#Headers],[Okt]],KontorPlan[#Headers],0))-INDEX(KontorFaktisk[],MATCH(INDEX(KontorVarians[],ROW()-ROW(KontorVarians[[#Headers],[Okt]]),1),INDEX(KontorPlan[],,1),0),MATCH(KontorVarians[[#Headers],[Okt]],KontorFaktisk[#Headers],0)) -> kr. 300.00 | M13: =INDEX(KontorPlan[],MATCH(INDEX(KontorVarians[],ROW()-ROW(KontorVarians[[#Headers],[Nov]]),1),INDEX(KontorPlan[],,1),0),MATCH(KontorVarians[[#Headers],[Nov]],KontorPlan[#Headers],0))-INDEX(KontorFaktisk[],MATCH(INDEX(KontorVarians[],ROW()-ROW(KontorVarians[[#Headers],[Nov]]),1),INDEX(KontorPlan[],,1),0),MATCH(KontorVarians[[#Headers],[Nov]],KontorFaktisk[#Headers],0)) -> kr. 300.00 | N13: =INDEX(KontorPlan[],MATCH(INDEX(KontorVarians[],ROW()-ROW(KontorVarians[[#Headers],[Dec]]),1),INDEX(KontorPlan[],,1),0),MATCH(KontorVarians[[#Headers],[Dec]],KontorPlan[#Headers],0))-INDEX(KontorFaktisk[],MATCH(INDEX(KontorVarians[],ROW()-ROW(KontorVarians[[#Headers],[Dec]]),1),INDEX(KontorPlan[],,1),0),MATCH(KontorVarians[[#Headers],[Dec]],KontorFaktisk[#Headers],0)) -> kr. 300.00 | O13: =SUM(KontorVarians[[#This Row],[Jan]:[Dec]]) -> kr. 1,871.00
B14: Vand | C14: =INDEX(KontorPlan[],MATCH(INDEX(KontorVarians[],ROW()-ROW(KontorVarians[[#Headers],[Jan]]),1),INDEX(KontorPlan[],,1),0),MATCH(KontorVarians[[#Headers],[Jan]],KontorPlan[#Headers],0))-INDEX(KontorFaktisk[],MATCH(INDEX(KontorVarians[],ROW()-ROW(KontorVarians[[#Headers],[Jan]]),1),INDEX(KontorPlan[],,1),0),MATCH(KontorVarians[[#Headers],[Jan]],KontorFaktisk[#Headers],0)) -> kr. 5.00 | D14: =INDEX(KontorPlan[],MATCH(INDEX(KontorVarians[],ROW()-ROW(KontorVarians[[#Headers],[Feb]]),1),INDEX(KontorPlan[],,1),0),MATCH(KontorVarians[[#Headers],[Feb]],KontorPlan[#Headers],0))-INDEX(KontorFaktisk[],MATCH(INDEX(KontorVarians[],ROW()-ROW(KontorVarians[[#Headers],[Feb]]),1),INDEX(KontorPlan[],,1),0),MATCH(KontorVarians[[#Headers],[Feb]],KontorFaktisk[#Headers],0)) -> kr. 7.00 | E14: =INDEX(KontorPlan[],MATCH(INDEX(KontorVarians[],ROW()-ROW(KontorVarians[[#Headers],[Mar]]),1),INDEX(KontorPlan[],,1),0),MATCH(KontorVarians[[#Headers],[Mar]],KontorPlan[#Headers],0))-INDEX(KontorFaktisk[],MATCH(INDEX(KontorVarians[],ROW()-ROW(KontorVarians[[#Headers],[Mar]]),1),INDEX(KontorPlan[],,1),0),MATCH(KontorVarians[[#Headers],[Mar]],KontorFaktisk[#Headers],0)) -> kr. 6.00 | F14: =INDEX(KontorPlan[],MATCH(INDEX(KontorVarians[],ROW()-ROW(KontorVarians[[#Headers],[Apr]]),1),INDEX(KontorPlan[],,1),0),MATCH(KontorVarians[[#Headers],[Apr]],KontorPlan[#Headers],0))-INDEX(KontorFaktisk[],MATCH(INDEX(KontorVarians[],ROW()-ROW(KontorVarians[[#Headers],[Apr]]),1),INDEX(KontorPlan[],,1),0),MATCH(KontorVarians[[#Headers],[Apr]],KontorFaktisk[#Headers],0)) -> kr. 4.00 | G14: =INDEX(KontorPlan[],MATCH(INDEX(KontorVarians[],ROW()-ROW(KontorVarians[[#Headers],[Maj]]),1),INDEX(KontorPlan[],,1),0),MATCH(KontorVarians[[#Headers],[Maj]],KontorPlan[#Headers],0))-INDEX(KontorFaktisk[],MATCH(INDEX(KontorVarians[],ROW()-ROW(KontorVarians[[#Headers],[Maj]]),1),INDEX(KontorPlan[],,1),0),MATCH(KontorVarians[[#Headers],[Maj]],KontorFaktisk[#Headers],0)) -> kr. 6.00 | H14: =INDEX(KontorPlan[],MATCH(INDEX(KontorVarians[],ROW()-ROW(KontorVarians[[#Headers],[Jun]]),1),INDEX(KontorPlan[],,1),0),MATCH(KontorVarians[[#Headers],[Jun]],KontorPlan[#Headers],0))-INDEX(KontorFaktisk[],MATCH(INDEX(KontorVarians[],ROW()-ROW(KontorVarians[[#Headers],[Jun]]),1),INDEX(KontorPlan[],,1),0),MATCH(KontorVarians[[#Headers],[Jun]],KontorFaktisk[#Headers],0)) -> kr. 4.00 | I14: =INDEX(KontorPlan[],MATCH(INDEX(KontorVarians[],ROW()-ROW(KontorVarians[[#Headers],[Jul]]),1),INDEX(KontorPlan[],,1),0),MATCH(KontorVarians[[#Headers],[Jul]],KontorPlan[#Headers],0))-INDEX(KontorFaktisk[],MATCH(INDEX(KontorVarians[],ROW()-ROW(KontorVarians[[#Headers],[Jul]]),1),INDEX(KontorPlan[],,1),0),MATCH(KontorVarians[[#Headers],[Jul]],KontorFaktisk[#Headers],0)) -> kr. 40.00 | J14: =INDEX(KontorPlan[],MATCH(INDEX(KontorVarians[],ROW()-ROW(KontorVarians[[#Headers],[Aug]]),1),INDEX(KontorPlan[],,1),0),MATCH(KontorVarians[[#Headers],[Aug]],KontorPlan[#Headers],0))-INDEX(KontorFaktisk[],MATCH(INDEX(KontorVarians[],ROW()-ROW(KontorVarians[[#Headers],[Aug]]),1),INDEX(KontorPlan[],,1),0),MATCH(KontorVarians[[#Headers],[Aug]],KontorFaktisk[#Headers],0)) -> kr. 40.00 | K14: =INDEX(KontorPlan[],MATCH(INDEX(KontorVarians[],ROW()-ROW(KontorVarians[[#Headers],[Sep]]),1),INDEX(KontorPlan[],,1),0),MATCH(KontorVarians[[#Headers],[Sep]],KontorPlan[#Headers],0))-INDEX(KontorFaktisk[],MATCH(INDEX(KontorVarians[],ROW()-ROW(KontorVarians[[#Headers],[Sep]]),1),INDEX(KontorPlan[],,1),0),MATCH(KontorVarians[[#Headers],[Sep]],KontorFaktisk[#Headers],0)) -> kr. 40.00 | L14: =INDEX(KontorPlan[],MATCH(INDEX(KontorVarians[],ROW()-ROW(KontorVarians[[#Headers],[Okt]]),1),INDEX(KontorPlan[],,1),0),MATCH(KontorVarians[[#Headers],[Okt]],KontorPlan[#Headers],0))-INDEX(KontorFaktisk[],MATCH(INDEX(KontorVarians[],ROW()-ROW(KontorVarians[[#Headers],[Okt]]),1),INDEX(KontorPlan[],,1),0),MATCH(KontorVarians[[#Headers],[Okt]],KontorFaktisk[#Headers],0)) -> kr. 40.00 | M14: =INDEX(KontorPlan[],MATCH(INDEX(KontorVarians[],ROW()-ROW(KontorVarians[[#Headers],[Nov]]),1),INDEX(KontorPlan[],,1),0),MATCH(KontorVarians[[#Headers],[Nov]],KontorPlan[#Headers],0))-INDEX(KontorFaktisk[],MATCH(INDEX(KontorVarians[],ROW()-ROW(KontorVarians[[#Headers],[Nov]]),1),INDEX(KontorPlan[],,1),0),MATCH(KontorVarians[[#Headers],[Nov]],KontorFaktisk[#Headers],0)) -> kr. 40.00 | N14: =INDEX(KontorPlan[],MATCH(INDEX(KontorVarians[],ROW()-ROW(KontorVarians[[#Headers],[Dec]]),1),INDEX(KontorPlan[],,1),0),MATCH(KontorVarians[[#Headers],[Dec]],KontorPlan[#Headers],0))-INDEX(KontorFaktisk[],MATCH(INDEX(KontorVarians[],ROW()-ROW(KontorVarians[[#Headers],[Dec]]),1),INDEX(KontorPlan[],,1),0),MATCH(KontorVarians[[#Headers],[Dec]],KontorFaktisk[#Headers],0)) -> kr. 40.00 | O14: =SUM(KontorVarians[[#This Row],[Jan]:[Dec]]) -> kr. 272.00
B15: Telefonnummer | C15: =INDEX(KontorPlan[],MATCH(INDEX(KontorVarians[],ROW()-ROW(KontorVarians[[#Headers],[Jan]]),1),INDEX(KontorPlan[],,1),0),MATCH(KontorVarians[[#Headers],[Jan]],KontorPlan[#Headers],0))-INDEX(KontorFaktisk[],MATCH(INDEX(KontorVarians[],ROW()-ROW(KontorVarians[[#Headers],[Jan]]),1),INDEX(KontorPlan[],,1),0),MATCH(KontorVarians[[#Headers],[Jan]],KontorFaktisk[#Headers],0)) -> kr. 26.00 | D15: =INDEX(KontorPlan[],MATCH(INDEX(KontorVarians[],ROW()-ROW(KontorVarians[[#Headers],[Feb]]),1),INDEX(KontorPlan[],,1),0),MATCH(KontorVarians[[#Headers],[Feb]],KontorPlan[#Headers],0))-INDEX(KontorFaktisk[],MATCH(INDEX(KontorVarians[],ROW()-ROW(KontorVarians[[#Headers],[Feb]]),1),INDEX(KontorPlan[],,1),0),MATCH(KontorVarians[[#Headers],[Feb]],KontorFaktisk[#Headers],0)) -> kr. 15.00 | E15: =INDEX(KontorPlan[],MATCH(INDEX(KontorVarians[],ROW()-ROW(KontorVarians[[#Headers],[Mar]]),1),INDEX(KontorPlan[],,1),0),MATCH(KontorVarians[[#Headers],[Mar]],KontorPlan[#Headers],0))-INDEX(KontorFaktisk[],MATCH(INDEX(KontorVarians[],ROW()-ROW(KontorVarians[[#Headers],[Mar]]),1),INDEX(KontorPlan[],,1),0),MATCH(KontorVarians[[#Headers],[Mar]],KontorFaktisk[#Headers],0)) -> kr. -15.00 | F15: =INDEX(KontorPlan[],MATCH(INDEX(KontorVarians[],ROW()-ROW(KontorVarians[[#Headers],[Apr]]),1),INDEX(KontorPlan[],,1),0),MATCH(KontorVarians[[#Headers],[Apr]],KontorPlan[#Headers],0))-INDEX(KontorFaktisk[],MATCH(INDEX(KontorVarians[],ROW()-ROW(KontorVarians[[#Headers],[Apr]]),1),INDEX(KontorPlan[],,1),0),MATCH(KontorVarians[[#Headers],[Apr]],KontorFaktisk[#Headers],0)) -> kr. 5.00 | G15: =INDEX(KontorPlan[],MATCH(INDEX(KontorVarians[],ROW()-ROW(KontorVarians[[#Headers],[Maj]]),1),INDEX(KontorPlan[],,1),0),MATCH(KontorVarians[[#Headers],[Maj]],KontorPlan[#Headers],0))-INDEX(KontorFaktisk[],MATCH(INDEX(KontorVarians[],ROW()-ROW(KontorVarians[[#Headers],[Maj]]),1),INDEX(KontorPlan[],,1),0),MATCH(KontorVarians[[#Headers],[Maj]],KontorFaktisk[#Headers],0)) -> kr. 5.00 | H15: =INDEX(KontorPlan[],MATCH(INDEX(KontorVarians[],ROW()-ROW(KontorVarians[[#Headers],[Jun]]),1),INDEX(KontorPlan[],,1),0),MATCH(KontorVarians[[#Headers],[Jun]],KontorPlan[#Headers],0))-INDEX(KontorFaktisk[],MATCH(INDEX(KontorVarians[],ROW()-ROW(KontorVarians[[#Headers],[Jun]]),1),INDEX(KontorPlan[],,1),0),MATCH(KontorVarians[[#Headers],[Jun]],KontorFaktisk[#Headers],0)) -> kr. 30.00 | I15: =INDEX(KontorPlan[],MATCH(INDEX(KontorVarians[],ROW()-ROW(KontorVarians[[#Headers],[Jul]]),1),INDEX(KontorPlan[],,1),0),MATCH(KontorVarians[[#Headers],[Jul]],KontorPlan[#Headers],0))-INDEX(KontorFaktisk[],MATCH(INDEX(KontorVarians[],ROW()-ROW(KontorVarians[[#Headers],[Jul]]),1),INDEX(KontorPlan[],,1),0),MATCH(KontorVarians[[#Headers],[Jul]],KontorFaktisk[#Headers],0)) -> kr. 250.00 | J15: =INDEX(KontorPlan[],MATCH(INDEX(KontorVarians[],ROW()-ROW(KontorVarians[[#Headers],[Aug]]),1),INDEX(KontorPlan[],,1),0),MATCH(KontorVarians[[#Headers],[Aug]],KontorPlan[#Headers],0))-INDEX(KontorFaktisk[],MATCH(INDEX(KontorVarians[],ROW()-ROW(KontorVarians[[#Headers],[Aug]]),1),INDEX(KontorPlan[],,1),0),MATCH(KontorVarians[[#Headers],[Aug]],KontorFaktisk[#Headers],0)) -> kr. 250.00 | K15: =INDEX(KontorPlan[],MATCH(INDEX(KontorVarians[],ROW()-ROW(KontorVarians[[#Headers],[Sep]]),1),INDEX(KontorPlan[],,1),0),MATCH(KontorVarians[[#Headers],[Sep]],KontorPlan[#Headers],0))-INDEX(KontorFaktisk[],MATCH(INDEX(KontorVarians[],ROW()-ROW(KontorVarians[[#Headers],[Sep]]),1),INDEX(KontorPlan[],,1),0),MATCH(KontorVarians[[#Headers],[Sep]],KontorFaktisk[#Headers],0)) -> kr. 250.00 | L15: =INDEX(KontorPlan[],MATCH(INDEX(KontorVarians[],ROW()-ROW(KontorVarians[[#Headers],[Okt]]),1),INDEX(KontorPlan[],,1),0),MATCH(KontorVarians[[#Headers],[Okt]],KontorPlan[#Headers],0))-INDEX(KontorFaktisk[],MATCH(INDEX(KontorVarians[],ROW()-ROW(KontorVarians[[#Headers],[Okt]]),1),INDEX(KontorPlan[],,1),0),MATCH(KontorVarians[[#Headers],[Okt]],KontorFaktisk[#Headers],0)) -> kr. 250.00 | M15: =INDEX(KontorPlan[],MATCH(INDEX(KontorVarians[],ROW()-ROW(KontorVarians[[#Headers],[Nov]]),1),INDEX(KontorPlan[],,1),0),MATCH(KontorVarians[[#Headers],[Nov]],KontorPlan[#Headers],0))-INDEX(KontorFaktisk[],MATCH(INDEX(KontorVarians[],ROW()-ROW(KontorVarians[[#Headers],[Nov]]),1),INDEX(KontorPlan[],,1),0),MATCH(KontorVarians[[#Headers],[Nov]],KontorFaktisk[#Headers],0)) -> kr. 250.00 | N15: =INDEX(KontorPlan[],MATCH(INDEX(KontorVarians[],ROW()-ROW(KontorVarians[[#Headers],[Dec]]),1),INDEX(KontorPlan[],,1),0),MATCH(KontorVarians[[#Headers],[Dec]],KontorPlan[#Headers],0))-INDEX(KontorFaktisk[],MATCH(INDEX(KontorVarians[],ROW()-ROW(KontorVarians[[#Headers],[Dec]]),1),INDEX(KontorPlan[],,1),0),MATCH(KontorVarians[[#Headers],[Dec]],KontorFaktisk[#Headers],0)) -> kr. 250.00 | O15: =SUM(KontorVarians[[#This Row],[Jan]:[Dec]]) -> kr. 1,566.00
B16: Internetadgang | C16: =INDEX(KontorPlan[],MATCH(INDEX(KontorVarians[],ROW()-ROW(KontorVarians[[#Headers],[Jan]]),1),INDEX(KontorPlan[],,1),0),MATCH(KontorVarians[[#Headers],[Jan]],KontorPlan[#Headers],0))-INDEX(KontorFaktisk[],MATCH(INDEX(KontorVarians[],ROW()-ROW(KontorVarians[[#Headers],[Jan]]),1),INDEX(KontorPlan[],,1),0),MATCH(KontorVarians[[#Headers],[Jan]],KontorFaktisk[#Headers],0)) -> kr. 0.00 | D16: =INDEX(KontorPlan[],MATCH(INDEX(KontorVarians[],ROW()-ROW(KontorVarians[[#Headers],[Feb]]),1),INDEX(KontorPlan[],,1),0),MATCH(KontorVarians[[#Headers],[Feb]],KontorPlan[#Headers],0))-INDEX(KontorFaktisk[],MATCH(INDEX(KontorVarians[],ROW()-ROW(KontorVarians[[#Headers],[Feb]]),1),INDEX(KontorPlan[],,1),0),MATCH(KontorVarians[[#Headers],[Feb]],KontorFaktisk[#Headers],0)) -> kr. 0.00 | E16: =INDEX(KontorPlan[],MATCH(INDEX(KontorVarians[],ROW()-ROW(KontorVarians[[#Headers],[Mar]]),1),INDEX(KontorPlan[],,1),0),MATCH(KontorVarians[[#Headers],[Mar]],KontorPlan[#Headers],0))-INDEX(KontorFaktisk[],MATCH(INDEX(KontorVarians[],ROW()-ROW(KontorVarians[[#Headers],[Mar]]),1),INDEX(KontorPlan[],,1),0),MATCH(KontorVarians[[#Headers],[Mar]],KontorFaktisk[#Headers],0)) -> kr. 0.00 | F16: =INDEX(KontorPlan[],MATCH(INDEX(KontorVarians[],ROW()-ROW(KontorVarians[[#Headers],[Apr]]),1),INDEX(KontorPlan[],,1),0),MATCH(KontorVarians[[#Headers],[Apr]],KontorPlan[#Headers],0))-INDEX(KontorFaktisk[],MATCH(INDEX(KontorVarians[],ROW()-ROW(KontorVarians[[#Headers],[Apr]]),1),INDEX(KontorPlan[],,1),0),MATCH(KontorVarians[[#Headers],[Apr]],KontorFaktisk[#Headers],0)) -> kr. 0.00 | G16: =INDEX(KontorPlan[],MATCH(INDEX(KontorVarians[],ROW()-ROW(KontorVarians[[#Headers],[Maj]]),1),INDEX(KontorPlan[],,1),0),MATCH(KontorVarians[[#Headers],[Maj]],KontorPlan[#Headers],0))-INDEX(KontorFaktisk[],MATCH(INDEX(KontorVarians[],ROW()-ROW(KontorVarians[[#Headers],[Maj]]),1),INDEX(KontorPlan[],,1),0),MATCH(KontorVarians[[#Headers],[Maj]],KontorFaktisk[#Headers],0)) -> kr. 0.00 | H16: =INDEX(KontorPlan[],MATCH(INDEX(KontorVarians[],ROW()-ROW(KontorVarians[[#Headers],[Jun]]),1),INDEX(KontorPlan[],,1),0),MATCH(KontorVarians[[#Headers],[Jun]],KontorPlan[#Headers],0))-INDEX(KontorFaktisk[],MATCH(INDEX(KontorVarians[],ROW()-ROW(KontorVarians[[#Headers],[Jun]]),1),INDEX(KontorPlan[],,1),0),MATCH(KontorVarians[[#Headers],[Jun]],KontorFaktisk[#Headers],0)) -> kr. 0.00 | I16: =INDEX(KontorPlan[],MATCH(INDEX(KontorVarians[],ROW()-ROW(KontorVarians[[#Headers],[Jul]]),1),INDEX(KontorPlan[],,1),0),MATCH(KontorVarians[[#Headers],[Jul]],KontorPlan[#Headers],0))-INDEX(KontorFaktisk[],MATCH(INDEX(KontorVarians[],ROW()-ROW(KontorVarians[[#Headers],[Jul]]),1),INDEX(KontorPlan[],,1),0),MATCH(KontorVarians[[#Headers],[Jul]],KontorFaktisk[#Headers],0)) -> kr. 180.00 | J16: =INDEX(KontorPlan[],MATCH(INDEX(KontorVarians[],ROW()-ROW(KontorVarians[[#Headers],[Aug]]),1),INDEX(KontorPlan[],,1),0),MATCH(KontorVarians[[#Headers],[Aug]],KontorPlan[#Headers],0))-INDEX(KontorFaktisk[],MATCH(INDEX(KontorVarians[],ROW()-ROW(KontorVarians[[#Headers],[Aug]]),1),INDEX(KontorPlan[],,1),0),MATCH(KontorVarians[[#Headers],[Aug]],KontorFaktisk[#Headers],0)) -> kr. 180.00 | K16: =INDEX(KontorPlan[],MATCH(INDEX(KontorVarians[],ROW()-ROW(KontorVarians[[#Headers],[Sep]]),1),INDEX(KontorPlan[],,1),0),MATCH(KontorVarians[[#Headers],[Sep]],KontorPlan[#Headers],0))-INDEX(KontorFaktisk[],MATCH(INDEX(KontorVarians[],ROW()-ROW(KontorVarians[[#Headers],[Sep]]),1),INDEX(KontorPlan[],,1),0),MATCH(KontorVarians[[#Headers],[Sep]],KontorFaktisk[#Headers],0)) -> kr. 180.00 | L16: =INDEX(KontorPlan[],MATCH(INDEX(KontorVarians[],ROW()-ROW(KontorVarians[[#Headers],[Okt]]),1),INDEX(KontorPlan[],,1),0),MATCH(KontorVarians[[#Headers],[Okt]],KontorPlan[#Headers],0))-INDEX(KontorFaktisk[],MATCH(INDEX(KontorVarians[],ROW()-ROW(KontorVarians[[#Headers],[Okt]]),1),INDEX(KontorPlan[],,1),0),MATCH(KontorVarians[[#Headers],[Okt]],KontorFaktisk[#Headers],0)) -> kr. 180.00 | M16: =INDEX(KontorPlan[],MATCH(INDEX(KontorVarians[],ROW()-ROW(KontorVarians[[#Headers],[Nov]]),1),INDEX(KontorPlan[],,1),0),MATCH(KontorVarians[[#Headers],[Nov]],KontorPlan[#Headers],0))-INDEX(KontorFaktisk[],MATCH(INDEX(KontorVarians[],ROW()-ROW(KontorVarians[[#Headers],[Nov]]),1),INDEX(KontorPlan[],,1),0),MATCH(KontorVarians[[#Headers],[Nov]],KontorFaktisk[#Headers],0)) -> kr. 180.00 | N16: =INDEX(KontorPlan[],MATCH(INDEX(KontorVarians[],ROW()-ROW(KontorVarians[[#Headers],[Dec]]),1),INDEX(KontorPlan[],,1),0),MATCH(KontorVarians[[#Headers],[Dec]],KontorPlan[#Headers],0))-INDEX(KontorFaktisk[],MATCH(INDEX(KontorVarians[],ROW()-ROW(KontorVarians[[#Headers],[Dec]]),1),INDEX(KontorPlan[],,1),0),MATCH(KontorVarians[[#Headers],[Dec]],KontorFaktisk[#Headers],0)) -> kr. 180.00 | O16: =SUM(KontorVarians[[#This Row],[Jan]:[Dec]]) -> kr. 1,080.00
B17: Kontorforsyninger | C17: =INDEX(KontorPlan[],MATCH(INDEX(KontorVarians[],ROW()-ROW(KontorVarians[[#Headers],[Jan]]),1),INDEX(KontorPlan[],,1),0),MATCH(KontorVarians[[#Headers],[Jan]],KontorPlan[#Headers],0))-INDEX(KontorFaktisk[],MATCH(INDEX(KontorVarians[],ROW()-ROW(KontorVarians[[#Headers],[Jan]]),1),INDEX(KontorPlan[],,1),0),MATCH(KontorVarians[[#Headers],[Jan]],KontorFaktisk[#Headers],0)) -> kr. -56.00 | D17: =INDEX(KontorPlan[],MATCH(INDEX(KontorVarians[],ROW()-ROW(KontorVarians[[#Headers],[Feb]]),1),INDEX(KontorPlan[],,1),0),MATCH(KontorVarians[[#Headers],[Feb]],KontorPlan[#Headers],0))-INDEX(KontorFaktisk[],MATCH(INDEX(KontorVarians[],ROW()-ROW(KontorVarians[[#Headers],[Feb]]),1),INDEX(KontorPlan[],,1),0),MATCH(KontorVarians[[#Headers],[Feb]],KontorFaktisk[#Headers],0)) -> kr. 58.00 | E17: =INDEX(KontorPlan[],MATCH(INDEX(KontorVarians[],ROW()-ROW(KontorVarians[[#Headers],[Mar]]),1),INDEX(KontorPlan[],,1),0),MATCH(KontorVarians[[#Headers],[Mar]],KontorPlan[#Headers],0))-INDEX(KontorFaktisk[],MATCH(INDEX(KontorVarians[],ROW()-ROW(KontorVarians[[#Headers],[Mar]]),1),INDEX(KontorPlan[],,1),0),MATCH(KontorVarians[[#Headers],[Mar]],KontorFaktisk[#Headers],0)) -> kr. 40.00 | F17: =INDEX(KontorPlan[],MATCH(INDEX(KontorVarians[],ROW()-ROW(KontorVarians[[#Headers],[Apr]]),1),INDEX(KontorPlan[],,1),0),MATCH(KontorVarians[[#Headers],[Apr]],KontorPlan[#Headers],0))-INDEX(KontorFaktisk[],MATCH(INDEX(KontorVarians[],ROW()-ROW(KontorVarians[[#Headers],[Apr]]),1),INDEX(KontorPlan[],,1),0),MATCH(KontorVarians[[#Headers],[Apr]],KontorFaktisk[#Headers],0)) -> kr. -21.00 | G17: =INDEX(KontorPlan[],MATCH(INDEX(KontorVarians[],ROW()-ROW(KontorVarians[[#Headers],[Maj]]),1),INDEX(KontorPlan[],,1),0),MATCH(KontorVarians[[#Headers],[Maj]],KontorPlan[#Headers],0))-INDEX(KontorFaktisk[],MATCH(INDEX(KontorVarians[],ROW()-ROW(KontorVarians[[#Headers],[Maj]]),1),INDEX(KontorPlan[],,1),0),MATCH(KontorVarians[[#Headers],[Maj]],KontorFaktisk[#Headers],0)) -> kr. -56.00 | H17: =INDEX(KontorPlan[],MATCH(INDEX(KontorVarians[],ROW()-ROW(KontorVarians[[#Headers],[Jun]]),1),INDEX(KontorPlan[],,1),0),MATCH(KontorVarians[[#Headers],[Jun]],KontorPlan[#Headers],0))-INDEX(KontorFaktisk[],MATCH(INDEX(KontorVarians[],ROW()-ROW(KontorVarians[[#Headers],[Jun]]),1),INDEX(KontorPlan[],,1),0),MATCH(KontorVarians[[#Headers],[Jun]],KontorFaktisk[#Headers],0)) -> kr. -40.00 | I17: =INDEX(KontorPlan[],MATCH(INDEX(KontorVarians[],ROW()-ROW(KontorVarians[[#Headers],[Jul]]),1),INDEX(KontorPlan[],,1),0),MATCH(KontorVarians[[#Headers],[Jul]],KontorPlan[#Headers],0))-INDEX(KontorFaktisk[],MATCH(INDEX(KontorVarians[],ROW()-ROW(KontorVarians[[#Headers],[Jul]]),1),INDEX(KontorPlan[],,1),0),MATCH(KontorVarians[[#Headers],[Jul]],KontorFaktisk[#Headers],0)) -> kr. 200.00 | J17: =INDEX(KontorPlan[],MATCH(INDEX(KontorVarians[],ROW()-ROW(KontorVarians[[#Headers],[Aug]]),1),INDEX(KontorPlan[],,1),0),MATCH(KontorVarians[[#Headers],[Aug]],KontorPlan[#Headers],0))-INDEX(KontorFaktisk[],MATCH(INDEX(KontorVarians[],ROW()-ROW(KontorVarians[[#Headers],[Aug]]),1),INDEX(KontorPlan[],,1),0),MATCH(KontorVarians[[#Headers],[Aug]],KontorFaktisk[#Headers],0)) -> kr. 200.00 | K17: =INDEX(KontorPlan[],MATCH(INDEX(KontorVarians[],ROW()-ROW(KontorVarians[[#Headers],[Sep]]),1),INDEX(KontorPlan[],,1),0),MATCH(KontorVarians[[#Headers],[Sep]],KontorPlan[#Headers],0))-INDEX(KontorFaktisk[],MATCH(INDEX(KontorVarians[],ROW()-ROW(KontorVarians[[#Headers],[Sep]]),1),INDEX(KontorPlan[],,1),0),MATCH(KontorVarians[[#Headers],[Sep]],KontorFaktisk[#Headers],0)) -> kr. 200.00 | L17: =INDEX(KontorPlan[],MATCH(INDEX(KontorVarians[],ROW()-ROW(KontorVarians[[#Headers],[Okt]]),1),INDEX(KontorPlan[],,1),0),MATCH(KontorVarians[[#Headers],[Okt]],KontorPlan[#Headers],0))-INDEX(KontorFaktisk[],MATCH(INDEX(KontorVarians[],ROW()-ROW(KontorVarians[[#Headers],[Okt]]),1),INDEX(KontorPlan[],,1),0),MATCH(KontorVarians[[#Headers],[Okt]],KontorFaktisk[#Headers],0)) -> kr. 200.00 | M17: =INDEX(KontorPlan[],MATCH(INDEX(KontorVarians[],ROW()-ROW(KontorVarians[[#Headers],[Nov]]),1),INDEX(KontorPlan[],,1),0),MATCH(KontorVarians[[#Headers],[Nov]],KontorPlan[#Headers],0))-INDEX(KontorFaktisk[],MATCH(INDEX(KontorVarians[],ROW()-ROW(KontorVarians[[#Headers],[Nov]]),1),INDEX(KontorPlan[],,1),0),MATCH(KontorVarians[[#Headers],[Nov]],KontorFaktisk[#Headers],0)) -> kr. 200.00 | N17: =INDEX(KontorPlan[],MATCH(INDEX(KontorVarians[],ROW()-ROW(KontorVarians[[#Headers],[Dec]]),1),INDEX(KontorPlan[],,1),0),MATCH(KontorVarians[[#Headers],[Dec]],KontorPlan[#Headers],0))-INDEX(KontorFaktisk[],MATCH(INDEX(KontorVarians[],ROW()-ROW(KontorVarians[[#Headers],[Dec]]),1),INDEX(KontorPlan[],,1),0),MATCH(KontorVarians[[#Headers],[Dec]],KontorFaktisk[#Headers],0)) -> kr. 200.00 | O17: =SUM(KontorVarians[[#This Row],[Jan]:[Dec]]) -> kr. 1,125.00
B18: Vagt | C18: =INDEX(KontorPlan[],MATCH(INDEX(KontorVarians[],ROW()-ROW(KontorVarians[[#Headers],[Jan]]),1),INDEX(KontorPlan[],,1),0),MATCH(KontorVarians[[#Headers],[Jan]],KontorPlan[#Headers],0))-INDEX(KontorFaktisk[],MATCH(INDEX(KontorVarians[],ROW()-ROW(KontorVarians[[#Headers],[Jan]]),1),INDEX(KontorPlan[],,1),0),MATCH(KontorVarians[[#Headers],[Jan]],KontorFaktisk[#Headers],0)) -> kr. 0.00 | D18: =INDEX(KontorPlan[],MATCH(INDEX(KontorVarians[],ROW()-ROW(KontorVarians[[#Headers],[Feb]]),1),INDEX(KontorPlan[],,1),0),MATCH(KontorVarians[[#Headers],[Feb]],KontorPlan[#Headers],0))-INDEX(KontorFaktisk[],MATCH(INDEX(KontorVarians[],ROW()-ROW(KontorVarians[[#Headers],[Feb]]),1),INDEX(KontorPlan[],,1),0),MATCH(KontorVarians[[#Headers],[Feb]],KontorFaktisk[#Headers],0)) -> kr. 0.00 | E18: =INDEX(KontorPlan[],MATCH(INDEX(KontorVarians[],ROW()-ROW(KontorVarians[[#Headers],[Mar]]),1),INDEX(KontorPlan[],,1),0),MATCH(KontorVarians[[#Headers],[Mar]],KontorPlan[#Headers],0))-INDEX(KontorFaktisk[],MATCH(INDEX(KontorVarians[],ROW()-ROW(KontorVarians[[#Headers],[Mar]]),1),INDEX(KontorPlan[],,1),0),MATCH(KontorVarians[[#Headers],[Mar]],KontorFaktisk[#Headers],0)) -> kr. 0.00 | F18: =INDEX(KontorPlan[],MATCH(INDEX(KontorVarians[],ROW()-ROW(KontorVarians[[#Headers],[Apr]]),1),INDEX(KontorPlan[],,1),0),MATCH(KontorVarians[[#Headers],[Apr]],KontorPlan[#Headers],0))-INDEX(KontorFaktisk[],MATCH(INDEX(KontorVarians[],ROW()-ROW(KontorVarians[[#Headers],[Apr]]),1),INDEX(KontorPlan[],,1),0),MATCH(KontorVarians[[#Headers],[Apr]],KontorFaktisk[#Headers],0)) -> kr. 0.00 | G18: =INDEX(KontorPlan[],MATCH(INDEX(KontorVarians[],ROW()-ROW(KontorVarians[[#Headers],[Maj]]),1),INDEX(KontorPlan[],,1),0),MATCH(KontorVarians[[#Headers],[Maj]],KontorPlan[#Headers],0))-INDEX(KontorFaktisk[],MATCH(INDEX(KontorVarians[],ROW()-ROW(KontorVarians[[#Headers],[Maj]]),1),INDEX(KontorPlan[],,1),0),MATCH(KontorVarians[[#Headers],[Maj]],KontorFaktisk[#Headers],0)) -> kr. 0.00 | H18: =INDEX(KontorPlan[],MATCH(INDEX(KontorVarians[],ROW()-ROW(KontorVarians[[#Headers],[Jun]]),1),INDEX(KontorPlan[],,1),0),MATCH(KontorVarians[[#Headers],[Jun]],KontorPlan[#Headers],0))-INDEX(KontorFaktisk[],MATCH(INDEX(KontorVarians[],ROW()-ROW(KontorVarians[[#Headers],[Jun]]),1),INDEX(KontorPlan[],,1),0),MATCH(KontorVarians[[#Headers],[Jun]],KontorFaktisk[#Headers],0)) -> kr. 0.00 | I18: =INDEX(KontorPlan[],MATCH(INDEX(KontorVarians[],ROW()-ROW(KontorVarians[[#Headers],[Jul]]),1),INDEX(KontorPlan[],,1),0),MATCH(KontorVarians[[#Headers],[Jul]],KontorPlan[#Headers],0))-INDEX(KontorFaktisk[],MATCH(INDEX(KontorVarians[],ROW()-ROW(KontorVarians[[#Headers],[Jul]]),1),INDEX(KontorPlan[],,1),0),MATCH(KontorVarians[[#Headers],[Jul]],KontorFaktisk[#Headers],0)) -> kr. 600.00 | J18: =INDEX(KontorPlan[],MATCH(INDEX(KontorVarians[],ROW()-ROW(KontorVarians[[#Headers],[Aug]]),1),INDEX(KontorPlan[],,1),0),MATCH(KontorVarians[[#Headers],[Aug]],KontorPlan[#Headers],0))-INDEX(KontorFaktisk[],MATCH(INDEX(KontorVarians[],ROW()-ROW(KontorVarians[[#Headers],[Aug]]),1),INDEX(KontorPlan[],,1),0),MATCH(KontorVarians[[#Headers],[Aug]],KontorFaktisk[#Headers],0)) -> kr. 600.00 | K18: =INDEX(KontorPlan[],MATCH(INDEX(KontorVarians[],ROW()-ROW(KontorVarians[[#Headers],[Sep]]),1),INDEX(KontorPlan[],,1),0),MATCH(KontorVarians[[#Headers],[Sep]],KontorPlan[#Headers],0))-INDEX(KontorFaktisk[],MATCH(INDEX(KontorVarians[],ROW()-ROW(KontorVarians[[#Headers],[Sep]]),1),INDEX(KontorPlan[],,1),0),MATCH(KontorVarians[[#Headers],[Sep]],KontorFaktisk[#Headers],0)) -> kr. 600.00 | L18: =INDEX(KontorPlan[],MATCH(INDEX(KontorVarians[],ROW()-ROW(KontorVarians[[#Headers],[Okt]]),1),INDEX(KontorPlan[],,1),0),MATCH(KontorVarians[[#Headers],[Okt]],KontorPlan[#Headers],0))-INDEX(KontorFaktisk[],MATCH(INDEX(KontorVarians[],ROW()-ROW(KontorVarians[[#Headers],[Okt]]),1),INDEX(KontorPlan[],,1),0),MATCH(KontorVarians[[#Headers],[Okt]],KontorFaktisk[#Headers],0)) -> kr. 600.00 | M18: =INDEX(KontorPlan[],MATCH(INDEX(KontorVarians[],ROW()-ROW(KontorVarians[[#Headers],[Nov]]),1),INDEX(KontorPlan[],,1),0),MATCH(KontorVarians[[#Headers],[Nov]],KontorPlan[#Headers],0))-INDEX(KontorFaktisk[],MATCH(INDEX(KontorVarians[],ROW()-ROW(KontorVarians[[#Headers],[Nov]]),1),INDEX(KontorPlan[],,1),0),MATCH(KontorVarians[[#Headers],[Nov]],KontorFaktisk[#Headers],0)) -> kr. 600.00 | N18: =INDEX(KontorPlan[],MATCH(INDEX(KontorVarians[],ROW()-ROW(KontorVarians[[#Headers],[Dec]]),1),INDEX(KontorPlan[],,1),0),MATCH(KontorVarians[[#Headers],[Dec]],KontorPlan[#Headers],0))-INDEX(KontorFaktisk[],MATCH(INDEX(KontorVarians[],ROW()-ROW(KontorVarians[[#Headers],[Dec]]),1),INDEX(KontorPlan[],,1),0),MATCH(KontorVarians[[#Headers],[Dec]],KontorFaktisk[#Headers],0)) -> kr. 600.00 | O18: =SUM(KontorVarians[[#This Row],[Jan]:[Dec]]) -> kr. 3,600.00
B19: Subtotal | C19: =SUBTOTAL(109,KontorVarians[Jan]) -> kr. -17.00 | D19: =SUBTOTAL(109,KontorVarians[Feb]) -> kr. 72.00 | E19: =SUBTOTAL(109,KontorVarians[Mar]) -> kr. 78.00 | F19: =SUBTOTAL(109,KontorVarians[Apr]) -> kr. -141.00 | G19: =SUBTOTAL(109,KontorVarians[Maj]) -> kr. -38.00 | H19: =SUBTOTAL(109,KontorVarians[Jun]) -> kr. 16.00 | I19: =SUBTOTAL(109,KontorVarians[Jul]) -> kr. 11,470.00 | J19: =SUBTOTAL(109,KontorVarians[Aug]) -> kr. 11,470.00 | K19: =SUBTOTAL(109,KontorVarians[Sep]) -> kr. 11,470.00 | L19: =SUBTOTAL(109,KontorVarians[Okt]) -> kr. 11,470.00 | M19: =SUBTOTAL(109,KontorVarians[Nov]) -> kr. 11,770.00 | N19: =SUBTOTAL(109,KontorVarians[Dec]) -> kr. 11,770.00 | O19: =SUBTOTAL(109,KontorVarians[ÅR]) -> kr. 69,390.00
B21: Marketingomkostninger | C21: Jan | D21: Feb | E21: Mar | F21: Apr | G21: Maj | H21: Jun | I21: Jul | J21: Aug | K21: Sep | L21: Okt | M21: Nov | N21: Dec | O21: ÅR
B22: Hosting for websted | C22: =INDEX(MarketingPlan[],MATCH(INDEX(MarketingVarianser[],ROW()-ROW(MarketingVarianser[[#Headers],[Jan]]),1),INDEX(MarketingPlan[],,1),0),MATCH(MarketingVarianser[[#Headers],[Jan]],MarketingPlan[#Headers],0))-INDEX(MarketingFaktisk[],MATCH(INDEX(MarketingVarianser[],ROW()-ROW(MarketingVarianser[[#Headers],[Jan]]),1),INDEX(MarketingPlan[],,1),0),MATCH(MarketingVarianser[[#Headers],[Jan]],MarketingFaktisk[#Headers],0)) -> kr. 0.00 | D22: =INDEX(MarketingPlan[],MATCH(INDEX(MarketingVarianser[],ROW()-ROW(MarketingVarianser[[#Headers],[Feb]]),1),INDEX(MarketingPlan[],,1),0),MATCH(MarketingVarianser[[#Headers],[Feb]],MarketingPlan[#Headers],0))-INDEX(MarketingFaktisk[],MATCH(INDEX(MarketingVarianser[],ROW()-ROW(MarketingVarianser[[#Headers],[Feb]]),1),INDEX(MarketingPlan[],,1),0),MATCH(MarketingVarianser[[#Headers],[Feb]],MarketingFaktisk[#Headers],0)) -> kr. 0.00 | E22: =INDEX(MarketingPlan[],MATCH(INDEX(MarketingVarianser[],ROW()-ROW(MarketingVarianser[[#Headers],[Mar]]),1),INDEX(MarketingPlan[],,1),0),MATCH(MarketingVarianser[[#Headers],[Mar]],MarketingPlan[#Headers],0))-INDEX(MarketingFaktisk[],MATCH(INDEX(MarketingVarianser[],ROW()-ROW(MarketingVarianser[[#Headers],[Mar]]),1),INDEX(MarketingPlan[],,1),0),MATCH(MarketingVarianser[[#Headers],[Mar]],MarketingFaktisk[#Headers],0)) -> kr. 0.00 | F22: =INDEX(MarketingPlan[],MATCH(INDEX(MarketingVarianser[],ROW()-ROW(MarketingVarianser[[#Headers],[Apr]]),1),INDEX(MarketingPlan[],,1),0),MATCH(MarketingVarianser[[#Headers],[Apr]],MarketingPlan[#Headers],0))-INDEX(MarketingFaktisk[],MATCH(INDEX(MarketingVarianser[],ROW()-ROW(MarketingVarianser[[#Headers],[Apr]]),1),INDEX(MarketingPlan[],,1),0),MATCH(MarketingVarianser[[#Headers],[Apr]],MarketingFaktisk[#Headers],0)) -> kr. 0.00 | G22: =INDEX(MarketingPlan[],MATCH(INDEX(MarketingVarianser[],ROW()-ROW(MarketingVarianser[[#Headers],[Maj]]),1),INDEX(MarketingPlan[],,1),0),MATCH(MarketingVarianser[[#Headers],[Maj]],MarketingPlan[#Headers],0))-INDEX(MarketingFaktisk[],MATCH(INDEX(MarketingVarianser[],ROW()-ROW(MarketingVarianser[[#Headers],[Maj]]),1),INDEX(MarketingPlan[],,1),0),MATCH(MarketingVarianser[[#Headers],[Maj]],MarketingFaktisk[#Headers],0)) -> kr. 0.00 | H22: =INDEX(MarketingPlan[],MATCH(INDEX(MarketingVarianser[],ROW()-ROW(MarketingVarianser[[#Headers],[Jun]]),1),INDEX(MarketingPlan[],,1),0),MATCH(MarketingVarianser[[#Headers],[Jun]],MarketingPlan[#Headers],0))-INDEX(MarketingFaktisk[],MATCH(INDEX(MarketingVarianser[],ROW()-ROW(MarketingVarianser[[#Headers],[Jun]]),1),INDEX(MarketingPlan[],,1),0),MATCH(MarketingVarianser[[#Headers],[Jun]],MarketingFaktisk[#Headers],0)) -> kr. 0.00 | I22: =INDEX(MarketingPlan[],MATCH(INDEX(MarketingVarianser[],ROW()-ROW(MarketingVarianser[[#Headers],[Jul]]),1),INDEX(MarketingPlan[],,1),0),MATCH(MarketingVarianser[[#Headers],[Jul]],MarketingPlan[#Headers],0))-INDEX(MarketingFaktisk[],MATCH(INDEX(MarketingVarianser[],ROW()-ROW(MarketingVarianser[[#Headers],[Jul]]),1),INDEX(MarketingPlan[],,1),0),MATCH(MarketingVarianser[[#Headers],[Jul]],MarketingFaktisk[#Headers],0)) -> kr. 500.00 | J22: =INDEX(MarketingPlan[],MATCH(INDEX(MarketingVarianser[],ROW()-ROW(MarketingVarianser[[#Headers],[Aug]]),1),INDEX(MarketingPlan[],,1),0),MATCH(MarketingVarianser[[#Headers],[Aug]],MarketingPlan[#Headers],0))-INDEX(MarketingFaktisk[],MATCH(INDEX(MarketingVarianser[],ROW()-ROW(MarketingVarianser[[#Headers],[Aug]]),1),INDEX(MarketingPlan[],,1),0),MATCH(MarketingVarianser[[#Headers],[Aug]],MarketingFaktisk[#Headers],0)) -> kr. 500.00 | K22: =INDEX(MarketingPlan[],MATCH(INDEX(MarketingVarianser[],ROW()-ROW(MarketingVarianser[[#Headers],[Sep]]),1),INDEX(MarketingPlan[],,1),0),MATCH(MarketingVarianser[[#Headers],[Sep]],MarketingPlan[#Headers],0))-INDEX(MarketingFaktisk[],MATCH(INDEX(MarketingVarianser[],ROW()-ROW(MarketingVarianser[[#Headers],[Sep]]),1),INDEX(MarketingPlan[],,1),0),MATCH(MarketingVarianser[[#Headers],[Sep]],MarketingFaktisk[#Headers],0)) -> kr. 500.00 | L22: =INDEX(MarketingPlan[],MATCH(INDEX(MarketingVarianser[],ROW()-ROW(MarketingVarianser[[#Headers],[Okt]]),1),INDEX(MarketingPlan[],,1),0),MATCH(MarketingVarianser[[#Headers],[Okt]],MarketingPlan[#Headers],0))-INDEX(MarketingFaktisk[],MATCH(INDEX(MarketingVarianser[],ROW()-ROW(MarketingVarianser[[#Headers],[Okt]]),1),INDEX(MarketingPlan[],,1),0),MATCH(MarketingVarianser[[#Headers],[Okt]],MarketingFaktisk[#Headers],0)) -> kr. 500.00 | M22: =INDEX(MarketingPlan[],MATCH(INDEX(MarketingVarianser[],ROW()-ROW(MarketingVarianser[[#Headers],[Nov]]),1),INDEX(MarketingPlan[],,1),0),MATCH(MarketingVarianser[[#Headers],[Nov]],MarketingPlan[#Headers],0))-INDEX(MarketingFaktisk[],MATCH(INDEX(MarketingVarianser[],ROW()-ROW(MarketingVarianser[[#Headers],[Nov]]),1),INDEX(MarketingPlan[],,1),0),MATCH(MarketingVarianser[[#Headers],[Nov]],MarketingFaktisk[#Headers],0)) -> kr. 500.00 | N22: =INDEX(MarketingPlan[],MATCH(INDEX(MarketingVarianser[],ROW()-ROW(MarketingVarianser[[#Headers],[Dec]]),1),INDEX(MarketingPlan[],,1),0),MATCH(MarketingVarianser[[#Headers],[Dec]],MarketingPlan[#Headers],0))-INDEX(MarketingFaktisk[],MATCH(INDEX(MarketingVarianser[],ROW()-ROW(MarketingVarianser[[#Headers],[Dec]]),1),INDEX(MarketingPlan[],,1),0),MATCH(MarketingVarianser[[#Headers],[Dec]],MarketingFaktisk[#Headers],0)) -> kr. 500.00 | O22: =SUM(MarketingVarianser[[#This Row],[Jan]:[Dec]]) -> kr. 3,000.00
B23: Opdateringer af websted | C23: =INDEX(MarketingPlan[],MATCH(INDEX(MarketingVarianser[],ROW()-ROW(MarketingVarianser[[#Headers],[Jan]]),1),INDEX(MarketingPlan[],,1),0),MATCH(MarketingVarianser[[#Headers],[Jan]],MarketingPlan[#Headers],0))-INDEX(MarketingFaktisk[],MATCH(INDEX(MarketingVarianser[],ROW()-ROW(MarketingVarianser[[#Headers],[Jan]]),1),INDEX(MarketingPlan[],,1),0),MATCH(MarketingVarianser[[#Headers],[Jan]],MarketingFaktisk[#Headers],0)) -> kr. 0.00 | D23: =INDEX(MarketingPlan[],MATCH(INDEX(MarketingVarianser[],ROW()-ROW(MarketingVarianser[[#Headers],[Feb]]),1),INDEX(MarketingPlan[],,1),0),MATCH(MarketingVarianser[[#Headers],[Feb]],MarketingPlan[#Headers],0))-INDEX(MarketingFaktisk[],MATCH(INDEX(MarketingVarianser[],ROW()-ROW(MarketingVarianser[[#Headers],[Feb]]),1),INDEX(MarketingPlan[],,1),0),MATCH(MarketingVarianser[[#Headers],[Feb]],MarketingFaktisk[#Headers],0)) -> kr. 0.00 | E23: =INDEX(MarketingPlan[],MATCH(INDEX(MarketingVarianser[],ROW()-ROW(MarketingVarianser[[#Headers],[Mar]]),1),INDEX(MarketingPlan[],,1),0),MATCH(MarketingVarianser[[#Headers],[Mar]],MarketingPlan[#Headers],0))-INDEX(MarketingFaktisk[],MATCH(INDEX(MarketingVarianser[],ROW()-ROW(MarketingVarianser[[#Headers],[Mar]]),1),INDEX(MarketingPlan[],,1),0),MATCH(MarketingVarianser[[#Headers],[Mar]],MarketingFaktisk[#Headers],0)) -> kr. 0.00 | F23: =INDEX(MarketingPlan[],MATCH(INDEX(MarketingVarianser[],ROW()-ROW(MarketingVarianser[[#Headers],[Apr]]),1),INDEX(MarketingPlan[],,1),0),MATCH(MarketingVarianser[[#Headers],[Apr]],MarketingPlan[#Headers],0))-INDEX(MarketingFaktisk[],MATCH(INDEX(MarketingVarianser[],ROW()-ROW(MarketingVarianser[[#Headers],[Apr]]),1),INDEX(MarketingPlan[],,1),0),MATCH(MarketingVarianser[[#Headers],[Apr]],MarketingFaktisk[#Headers],0)) -> kr. 0.00 | G23: =INDEX(MarketingPlan[],MATCH(INDEX(MarketingVarianser[],ROW()-ROW(MarketingVarianser[[#Headers],[Maj]]),1),INDEX(MarketingPlan[],,1),0),MATCH(MarketingVarianser[[#Headers],[Maj]],MarketingPlan[#Headers],0))-INDEX(MarketingFaktisk[],MATCH(INDEX(MarketingVarianser[],ROW()-ROW(MarketingVarianser[[#Headers],[Maj]]),1),INDEX(MarketingPlan[],,1),0),MATCH(MarketingVarianser[[#Headers],[Maj]],MarketingFaktisk[#Headers],0)) -> kr. 0.00 | H23: =INDEX(MarketingPlan[],MATCH(INDEX(MarketingVarianser[],ROW()-ROW(MarketingVarianser[[#Headers],[Jun]]),1),INDEX(MarketingPlan[],,1),0),MATCH(MarketingVarianser[[#Headers],[Jun]],MarketingPlan[#Headers],0))-INDEX(MarketingFaktisk[],MATCH(INDEX(MarketingVarianser[],ROW()-ROW(MarketingVarianser[[#Headers],[Jun]]),1),INDEX(MarketingPlan[],,1),0),MATCH(MarketingVarianser[[#Headers],[Jun]],MarketingFaktisk[#Headers],0)) -> kr. -500.00 | I23: =INDEX(MarketingPlan[],MATCH(INDEX(MarketingVarianser[],ROW()-ROW(MarketingVarianser[[#Headers],[Jul]]),1),INDEX(MarketingPlan[],,1),0),MATCH(MarketingVarianser[[#Headers],[Jul]],MarketingPlan[#Headers],0))-INDEX(MarketingFaktisk[],MATCH(INDEX(MarketingVarianser[],ROW()-ROW(MarketingVarianser[[#Headers],[Jul]]),1),INDEX(MarketingPlan[],,1),0),MATCH(MarketingVarianser[[#Headers],[Jul]],MarketingFaktisk[#Headers],0)) -> kr. 200.00 | J23: =INDEX(MarketingPlan[],MATCH(INDEX(MarketingVarianser[],ROW()-ROW(MarketingVarianser[[#Headers],[Aug]]),1),INDEX(MarketingPlan[],,1),0),MATCH(MarketingVarianser[[#Headers],[Aug]],MarketingPlan[#Headers],0))-INDEX(MarketingFaktisk[],MATCH(INDEX(MarketingVarianser[],ROW()-ROW(MarketingVarianser[[#Headers],[Aug]]),1),INDEX(MarketingPlan[],,1),0),MATCH(MarketingVarianser[[#Headers],[Aug]],MarketingFaktisk[#Headers],0)) -> kr. 200.00 | K23: =INDEX(MarketingPlan[],MATCH(INDEX(MarketingVarianser[],ROW()-ROW(MarketingVarianser[[#Headers],[Sep]]),1),INDEX(MarketingPlan[],,1),0),MATCH(MarketingVarianser[[#Headers],[Sep]],MarketingPlan[#Headers],0))-INDEX(MarketingFaktisk[],MATCH(INDEX(MarketingVarianser[],ROW()-ROW(MarketingVarianser[[#Headers],[Sep]]),1),INDEX(MarketingPlan[],,1),0),MATCH(MarketingVarianser[[#Headers],[Sep]],MarketingFaktisk[#Headers],0)) -> kr. 200.00 | L23: =INDEX(MarketingPlan[],MATCH(INDEX(MarketingVarianser[],ROW()-ROW(MarketingVarianser[[#Headers],[Okt]]),1),INDEX(MarketingPlan[],,1),0),MATCH(MarketingVarianser[[#Headers],[Okt]],MarketingPlan[#Headers],0))-INDEX(MarketingFaktisk[],MATCH(INDEX(MarketingVarianser[],ROW()-ROW(MarketingVarianser[[#Headers],[Okt]]),1),INDEX(MarketingPlan[],,1),0),MATCH(MarketingVarianser[[#Headers],[Okt]],MarketingFaktisk[#Headers],0)) -> kr. 200.00 | M23: =INDEX(MarketingPlan[],MATCH(INDEX(MarketingVarianser[],ROW()-ROW(MarketingVarianser[[#Headers],[Nov]]),1),INDEX(MarketingPlan[],,1),0),MATCH(MarketingVarianser[[#Headers],[Nov]],MarketingPlan[#Headers],0))-INDEX(MarketingFaktisk[],MATCH(INDEX(MarketingVarianser[],ROW()-ROW(MarketingVarianser[[#Headers],[Nov]]),1),INDEX(MarketingPlan[],,1),0),MATCH(MarketingVarianser[[#Headers],[Nov]],MarketingFaktisk[#Headers],0)) -> kr. 200.00 | N23: =INDEX(MarketingPlan[],MATCH(INDEX(MarketingVarianser[],ROW()-ROW(MarketingVarianser[[#Headers],[Dec]]),1),INDEX(MarketingPlan[],,1),0),MATCH(MarketingVarianser[[#Headers],[Dec]],MarketingPlan[#Headers],0))-INDEX(MarketingFaktisk[],MATCH(INDEX(MarketingVarianser[],ROW()-ROW(MarketingVarianser[[#Headers],[Dec]]),1),INDEX(MarketingPlan[],,1),0),MATCH(MarketingVarianser[[#Headers],[Dec]],MarketingFaktisk[#Headers],0)) -> kr. 1,000.00 | O23: =SUM(MarketingVarianser[[#This Row],[Jan]:[Dec]]) -> kr. 1,500.00
B24: Forberedelse af marketingartikler | C24: =INDEX(MarketingPlan[],MATCH(INDEX(MarketingVarianser[],ROW()-ROW(MarketingVarianser[[#Headers],[Jan]]),1),INDEX(MarketingPlan[],,1),0),MATCH(MarketingVarianser[[#Headers],[Jan]],MarketingPlan[#Headers],0))-INDEX(MarketingFaktisk[],MATCH(INDEX(MarketingVarianser[],ROW()-ROW(MarketingVarianser[[#Headers],[Jan]]),1),INDEX(MarketingPlan[],,1),0),MATCH(MarketingVarianser[[#Headers],[Jan]],MarketingFaktisk[#Headers],0)) -> kr. 200.00 | D24: =INDEX(MarketingPlan[],MATCH(INDEX(MarketingVarianser[],ROW()-ROW(MarketingVarianser[[#Headers],[Feb]]),1),INDEX(MarketingPlan[],,1),0),MATCH(MarketingVarianser[[#Headers],[Feb]],MarketingPlan[#Headers],0))-INDEX(MarketingFaktisk[],MATCH(INDEX(MarketingVarianser[],ROW()-ROW(MarketingVarianser[[#Headers],[Feb]]),1),INDEX(MarketingPlan[],,1),0),MATCH(MarketingVarianser[[#Headers],[Feb]],MarketingFaktisk[#Headers],0)) -> kr. 0.00 | E24: =INDEX(MarketingPlan[],MATCH(INDEX(MarketingVarianser[],ROW()-ROW(MarketingVarianser[[#Headers],[Mar]]),1),INDEX(MarketingPlan[],,1),0),MATCH(MarketingVarianser[[#Headers],[Mar]],MarketingPlan[#Headers],0))-INDEX(MarketingFaktisk[],MATCH(INDEX(MarketingVarianser[],ROW()-ROW(MarketingVarianser[[#Headers],[Mar]]),1),INDEX(MarketingPlan[],,1),0),MATCH(MarketingVarianser[[#Headers],[Mar]],MarketingFaktisk[#Headers],0)) -> kr. 0.00 | F24: =INDEX(MarketingPlan[],MATCH(INDEX(MarketingVarianser[],ROW()-ROW(MarketingVarianser[[#Headers],[Apr]]),1),INDEX(MarketingPlan[],,1),0),MATCH(MarketingVarianser[[#Headers],[Apr]],MarketingPlan[#Headers],0))-INDEX(MarketingFaktisk[],MATCH(INDEX(MarketingVarianser[],ROW()-ROW(MarketingVarianser[[#Headers],[Apr]]),1),INDEX(MarketingPlan[],,1),0),MATCH(MarketingVarianser[[#Headers],[Apr]],MarketingFaktisk[#Headers],0)) -> kr. -500.00 | G24: =INDEX(MarketingPlan[],MATCH(INDEX(MarketingVarianser[],ROW()-ROW(MarketingVarianser[[#Headers],[Maj]]),1),INDEX(MarketingPlan[],,1),0),MATCH(MarketingVarianser[[#Headers],[Maj]],MarketingPlan[#Headers],0))-INDEX(MarketingFaktisk[],MATCH(INDEX(MarketingVarianser[],ROW()-ROW(MarketingVarianser[[#Headers],[Maj]]),1),INDEX(MarketingPlan[],,1),0),MATCH(MarketingVarianser[[#Headers],[Maj]],MarketingFaktisk[#Headers],0)) -> kr. 0.00 | H24: =INDEX(MarketingPlan[],MATCH(INDEX(MarketingVarianser[],ROW()-ROW(MarketingVarianser[[#Headers],[Jun]]),1),INDEX(MarketingPlan[],,1),0),MATCH(MarketingVarianser[[#Headers],[Jun]],MarketingPlan[#Headers],0))-INDEX(MarketingFaktisk[],MATCH(INDEX(MarketingVarianser[],ROW()-ROW(MarketingVarianser[[#Headers],[Jun]]),1),INDEX(MarketingPlan[],,1),0),MATCH(MarketingVarianser[[#Headers],[Jun]],MarketingFaktisk[#Headers],0)) -> kr. 0.00 | I24: =INDEX(MarketingPlan[],MATCH(INDEX(MarketingVarianser[],ROW()-ROW(MarketingVarianser[[#Headers],[Jul]]),1),INDEX(MarketingPlan[],,1),0),MATCH(MarketingVarianser[[#Headers],[Jul]],MarketingPlan[#Headers],0))-INDEX(MarketingFaktisk[],MATCH(INDEX(MarketingVarianser[],ROW()-ROW(MarketingVarianser[[#Headers],[Jul]]),1),INDEX(MarketingPlan[],,1),0),MATCH(MarketingVarianser[[#Headers],[Jul]],MarketingFaktisk[#Headers],0)) -> kr. 5,000.00 | J24: =INDEX(MarketingPlan[],MATCH(INDEX(MarketingVarianser[],ROW()-ROW(MarketingVarianser[[#Headers],[Aug]]),1),INDEX(MarketingPlan[],,1),0),MATCH(MarketingVarianser[[#Headers],[Aug]],MarketingPlan[#Headers],0))-INDEX(MarketingFaktisk[],MATCH(INDEX(MarketingVarianser[],ROW()-ROW(MarketingVarianser[[#Headers],[Aug]]),1),INDEX(MarketingPlan[],,1),0),MATCH(MarketingVarianser[[#Headers],[Aug]],MarketingFaktisk[#Headers],0)) -> kr. 0.00 | K24: =INDEX(MarketingPlan[],MATCH(INDEX(MarketingVarianser[],ROW()-ROW(MarketingVarianser[[#Headers],[Sep]]),1),INDEX(MarketingPlan[],,1),0),MATCH(MarketingVarianser[[#Headers],[Sep]],MarketingPlan[#Headers],0))-INDEX(MarketingFaktisk[],MATCH(INDEX(MarketingVarianser[],ROW()-ROW(MarketingVarianser[[#Headers],[Sep]]),1),INDEX(MarketingPlan[],,1),0),MATCH(MarketingVarianser[[#Headers],[Sep]],MarketingFaktisk[#Headers],0)) -> kr. 0.00 | L24: =INDEX(MarketingPlan[],MATCH(INDEX(MarketingVarianser[],ROW()-ROW(MarketingVarianser[[#Headers],[Okt]]),1),INDEX(MarketingPlan[],,1),0),MATCH(MarketingVarianser[[#Headers],[Okt]],MarketingPlan[#Headers],0))-INDEX(MarketingFaktisk[],MATCH(INDEX(MarketingVarianser[],ROW()-ROW(MarketingVarianser[[#Headers],[Okt]]),1),INDEX(MarketingPlan[],,1),0),MATCH(MarketingVarianser[[#Headers],[Okt]],MarketingFaktisk[#Headers],0)) -> kr. 5,000.00 | M24: =INDEX(MarketingPlan[],MATCH(INDEX(MarketingVarianser[],ROW()-ROW(MarketingVarianser[[#Headers],[Nov]]),1),INDEX(MarketingPlan[],,1),0),MATCH(MarketingVarianser[[#Headers],[Nov]],MarketingPlan[#Headers],0))-INDEX(MarketingFaktisk[],MATCH(INDEX(MarketingVarianser[],ROW()-ROW(MarketingVarianser[[#Headers],[Nov]]),1),INDEX(MarketingPlan[],,1),0),MATCH(MarketingVarianser[[#Headers],[Nov]],MarketingFaktisk[#Headers],0)) -> kr. 0.00 | N24: =INDEX(MarketingPlan[],MATCH(INDEX(MarketingVarianser[],ROW()-ROW(MarketingVarianser[[#Headers],[Dec]]),1),INDEX(MarketingPlan[],,1),0),MATCH(MarketingVarianser[[#Headers],[Dec]],MarketingPlan[#Headers],0))-INDEX(MarketingFaktisk[],MATCH(INDEX(MarketingVarianser[],ROW()-ROW(MarketingVarianser[[#Headers],[Dec]]),1),INDEX(MarketingPlan[],,1),0),MATCH(MarketingVarianser[[#Headers],[Dec]],MarketingFaktisk[#Headers],0)) -> kr. 0.00 | O24: =SUM(MarketingVarianser[[#This Row],[Jan]:[Dec]]) -> kr. 9,700.00
B25: Tryk af marketingartikler | C25: =INDEX(MarketingPlan[],MATCH(INDEX(MarketingVarianser[],ROW()-ROW(MarketingVarianser[[#Headers],[Jan]]),1),INDEX(MarketingPlan[],,1),0),MATCH(MarketingVarianser[[#Headers],[Jan]],MarketingPlan[#Headers],0))-INDEX(MarketingFaktisk[],MATCH(INDEX(MarketingVarianser[],ROW()-ROW(MarketingVarianser[[#Headers],[Jan]]),1),INDEX(MarketingPlan[],,1),0),MATCH(MarketingVarianser[[#Headers],[Jan]],MarketingFaktisk[#Headers],0)) -> kr. 100.00 | D25: =INDEX(MarketingPlan[],MATCH(INDEX(MarketingVarianser[],ROW()-ROW(MarketingVarianser[[#Headers],[Feb]]),1),INDEX(MarketingPlan[],,1),0),MATCH(MarketingVarianser[[#Headers],[Feb]],MarketingPlan[#Headers],0))-INDEX(MarketingFaktisk[],MATCH(INDEX(MarketingVarianser[],ROW()-ROW(MarketingVarianser[[#Headers],[Feb]]),1),INDEX(MarketingPlan[],,1),0),MATCH(MarketingVarianser[[#Headers],[Feb]],MarketingFaktisk[#Headers],0)) -> kr. -300.00 | E25: =INDEX(MarketingPlan[],MATCH(INDEX(MarketingVarianser[],ROW()-ROW(MarketingVarianser[[#Headers],[Mar]]),1),INDEX(MarketingPlan[],,1),0),MATCH(MarketingVarianser[[#Headers],[Mar]],MarketingPlan[#Headers],0))-INDEX(MarketingFaktisk[],MATCH(INDEX(MarketingVarianser[],ROW()-ROW(MarketingVarianser[[#Headers],[Mar]]),1),INDEX(MarketingPlan[],,1),0),MATCH(MarketingVarianser[[#Headers],[Mar]],MarketingFaktisk[#Headers],0)) -> kr. 100.00 | F25: =INDEX(MarketingPlan[],MATCH(INDEX(MarketingVarianser[],ROW()-ROW(MarketingVarianser[[#Headers],[Apr]]),1),INDEX(MarketingPlan[],,1),0),MATCH(MarketingVarianser[[#Headers],[Apr]],MarketingPlan[#Headers],0))-INDEX(MarketingFaktisk[],MATCH(INDEX(MarketingVarianser[],ROW()-ROW(MarketingVarianser[[#Headers],[Apr]]),1),INDEX(MarketingPlan[],,1),0),MATCH(MarketingVarianser[[#Headers],[Apr]],MarketingFaktisk[#Headers],0)) -> kr. 100.00 | G25: =INDEX(MarketingPlan[],MATCH(INDEX(MarketingVarianser[],ROW()-ROW(MarketingVarianser[[#Headers],[Maj]]),1),INDEX(MarketingPlan[],,1),0),MATCH(MarketingVarianser[[#Headers],[Maj]],MarketingPlan[#Headers],0))-INDEX(MarketingFaktisk[],MATCH(INDEX(MarketingVarianser[],ROW()-ROW(MarketingVarianser[[#Headers],[Maj]]),1),INDEX(MarketingPlan[],,1),0),MATCH(MarketingVarianser[[#Headers],[Maj]],MarketingFaktisk[#Headers],0)) -> kr. -400.00 | H25: =INDEX(MarketingPlan[],MATCH(INDEX(MarketingVarianser[],ROW()-ROW(MarketingVarianser[[#Headers],[Jun]]),1),INDEX(MarketingPlan[],,1),0),MATCH(MarketingVarianser[[#Headers],[Jun]],MarketingPlan[#Headers],0))-INDEX(MarketingFaktisk[],MATCH(INDEX(MarketingVarianser[],ROW()-ROW(MarketingVarianser[[#Headers],[Jun]]),1),INDEX(MarketingPlan[],,1),0),MATCH(MarketingVarianser[[#Headers],[Jun]],MarketingFaktisk[#Headers],0)) -> kr. 20.00 | I25: =INDEX(MarketingPlan[],MATCH(INDEX(MarketingVarianser[],ROW()-ROW(MarketingVarianser[[#Headers],[Jul]]),1),INDEX(MarketingPlan[],,1),0),MATCH(MarketingVarianser[[#Headers],[Jul]],MarketingPlan[#Headers],0))-INDEX(MarketingFaktisk[],MATCH(INDEX(MarketingVarianser[],ROW()-ROW(MarketingVarianser[[#Headers],[Jul]]),1),INDEX(MarketingPlan[],,1),0),MATCH(MarketingVarianser[[#Headers],[Jul]],MarketingFaktisk[#Headers],0)) -> kr. 200.00 | J25: =INDEX(MarketingPlan[],MATCH(INDEX(MarketingVarianser[],ROW()-ROW(MarketingVarianser[[#Headers],[Aug]]),1),INDEX(MarketingPlan[],,1),0),MATCH(MarketingVarianser[[#Headers],[Aug]],MarketingPlan[#Headers],0))-INDEX(MarketingFaktisk[],MATCH(INDEX(MarketingVarianser[],ROW()-ROW(MarketingVarianser[[#Headers],[Aug]]),1),INDEX(MarketingPlan[],,1),0),MATCH(MarketingVarianser[[#Headers],[Aug]],MarketingFaktisk[#Headers],0)) -> kr. 200.00 | K25: =INDEX(MarketingPlan[],MATCH(INDEX(MarketingVarianser[],ROW()-ROW(MarketingVarianser[[#Headers],[Sep]]),1),INDEX(MarketingPlan[],,1),0),MATCH(MarketingVarianser[[#Headers],[Sep]],MarketingPlan[#Headers],0))-INDEX(MarketingFaktisk[],MATCH(INDEX(MarketingVarianser[],ROW()-ROW(MarketingVarianser[[#Headers],[Sep]]),1),INDEX(MarketingPlan[],,1),0),MATCH(MarketingVarianser[[#Headers],[Sep]],MarketingFaktisk[#Headers],0)) -> kr. 200.00 | L25: =INDEX(MarketingPlan[],MATCH(INDEX(MarketingVarianser[],ROW()-ROW(MarketingVarianser[[#Headers],[Okt]]),1),INDEX(MarketingPlan[],,1),0),MATCH(MarketingVarianser[[#Headers],[Okt]],MarketingPlan[#Headers],0))-INDEX(MarketingFaktisk[],MATCH(INDEX(MarketingVarianser[],ROW()-ROW(MarketingVarianser[[#Headers],[Okt]]),1),INDEX(MarketingPlan[],,1),0),MATCH(MarketingVarianser[[#Headers],[Okt]],MarketingFaktisk[#Headers],0)) -> kr. 200.00 | M25: =INDEX(MarketingPlan[],MATCH(INDEX(MarketingVarianser[],ROW()-ROW(MarketingVarianser[[#Headers],[Nov]]),1),INDEX(MarketingPlan[],,1),0),MATCH(MarketingVarianser[[#Headers],[Nov]],MarketingPlan[#Headers],0))-INDEX(MarketingFaktisk[],MATCH(INDEX(MarketingVarianser[],ROW()-ROW(MarketingVarianser[[#Headers],[Nov]]),1),INDEX(MarketingPlan[],,1),0),MATCH(MarketingVarianser[[#Headers],[Nov]],MarketingFaktisk[#Headers],0)) -> kr. 200.00 | N25: =INDEX(MarketingPlan[],MATCH(INDEX(MarketingVarianser[],ROW()-ROW(MarketingVarianser[[#Headers],[Dec]]),1),INDEX(MarketingPlan[],,1),0),MATCH(MarketingVarianser[[#Headers],[Dec]],MarketingPlan[#Headers],0))-INDEX(MarketingFaktisk[],MATCH(INDEX(MarketingVarianser[],ROW()-ROW(MarketingVarianser[[#Headers],[Dec]]),1),INDEX(MarketingPlan[],,1),0),MATCH(MarketingVarianser[[#Headers],[Dec]],MarketingFaktisk[#Headers],0)) -> kr. 200.00 | O25: =SUM(MarketingVarianser[[#This Row],[Jan]:[Dec]]) -> kr. 820.00
B26: Marketingarrangementer | C26: =INDEX(MarketingPlan[],MATCH(INDEX(MarketingVarianser[],ROW()-ROW(MarketingVarianser[[#Headers],[Jan]]),1),INDEX(MarketingPlan[],,1),0),MATCH(MarketingVarianser[[#Headers],[Jan]],MarketingPlan[#Headers],0))-INDEX(MarketingFaktisk[],MATCH(INDEX(MarketingVarianser[],ROW()-ROW(MarketingVarianser[[#Headers],[Jan]]),1),INDEX(MarketingPlan[],,1),0),MATCH(MarketingVarianser[[#Headers],[Jan]],MarketingFaktisk[#Headers],0)) -> kr. 200.00 | D26: =INDEX(MarketingPlan[],MATCH(INDEX(MarketingVarianser[],ROW()-ROW(MarketingVarianser[[#Headers],[Feb]]),1),INDEX(MarketingPlan[],,1),0),MATCH(MarketingVarianser[[#Headers],[Feb]],MarketingPlan[#Headers],0))-INDEX(MarketingFaktisk[],MATCH(INDEX(MarketingVarianser[],ROW()-ROW(MarketingVarianser[[#Headers],[Feb]]),1),INDEX(MarketingPlan[],,1),0),MATCH(MarketingVarianser[[#Headers],[Feb]],MarketingFaktisk[#Headers],0)) -> kr. -200.00 | E26: =INDEX(MarketingPlan[],MATCH(INDEX(MarketingVarianser[],ROW()-ROW(MarketingVarianser[[#Headers],[Mar]]),1),INDEX(MarketingPlan[],,1),0),MATCH(MarketingVarianser[[#Headers],[Mar]],MarketingPlan[#Headers],0))-INDEX(MarketingFaktisk[],MATCH(INDEX(MarketingVarianser[],ROW()-ROW(MarketingVarianser[[#Headers],[Mar]]),1),INDEX(MarketingPlan[],,1),0),MATCH(MarketingVarianser[[#Headers],[Mar]],MarketingFaktisk[#Headers],0)) -> kr. -200.00 | F26: =INDEX(MarketingPlan[],MATCH(INDEX(MarketingVarianser[],ROW()-ROW(MarketingVarianser[[#Headers],[Apr]]),1),INDEX(MarketingPlan[],,1),0),MATCH(MarketingVarianser[[#Headers],[Apr]],MarketingPlan[#Headers],0))-INDEX(MarketingFaktisk[],MATCH(INDEX(MarketingVarianser[],ROW()-ROW(MarketingVarianser[[#Headers],[Apr]]),1),INDEX(MarketingPlan[],,1),0),MATCH(MarketingVarianser[[#Headers],[Apr]],MarketingFaktisk[#Headers],0)) -> kr. 300.00 | G26: =INDEX(MarketingPlan[],MATCH(INDEX(MarketingVarianser[],ROW()-ROW(MarketingVarianser[[#Headers],[Maj]]),1),INDEX(MarketingPlan[],,1),0),MATCH(MarketingVarianser[[#Headers],[Maj]],MarketingPlan[#Headers],0))-INDEX(MarketingFaktisk[],MATCH(INDEX(MarketingVarianser[],ROW()-ROW(MarketingVarianser[[#Headers],[Maj]]),1),INDEX(MarketingPlan[],,1),0),MATCH(MarketingVarianser[[#Headers],[Maj]],MarketingFaktisk[#Headers],0)) -> kr. 500.00 | H26: =INDEX(MarketingPlan[],MATCH(INDEX(MarketingVarianser[],ROW()-ROW(MarketingVarianser[[#Headers],[Jun]]),1),INDEX(MarketingPlan[],,1),0),MATCH(MarketingVarianser[[#Headers],[Jun]],MarketingPlan[#Headers],0))-INDEX(MarketingFaktisk[],MATCH(INDEX(MarketingVarianser[],ROW()-ROW(MarketingVarianser[[#Headers],[Jun]]),1),INDEX(MarketingPlan[],,1),0),MATCH(MarketingVarianser[[#Headers],[Jun]],MarketingFaktisk[#Headers],0)) -> kr. -300.00 | I26: =INDEX(MarketingPlan[],MATCH(INDEX(MarketingVarianser[],ROW()-ROW(MarketingVarianser[[#Headers],[Jul]]),1),INDEX(MarketingPlan[],,1),0),MATCH(MarketingVarianser[[#Headers],[Jul]],MarketingPlan[#Headers],0))-INDEX(MarketingFaktisk[],MATCH(INDEX(MarketingVarianser[],ROW()-ROW(MarketingVarianser[[#Headers],[Jul]]),1),INDEX(MarketingPlan[],,1),0),MATCH(MarketingVarianser[[#Headers],[Jul]],MarketingFaktisk[#Headers],0)) -> kr. 2,000.00 | J26: =INDEX(MarketingPlan[],MATCH(INDEX(MarketingVarianser[],ROW()-ROW(MarketingVarianser[[#Headers],[Aug]]),1),INDEX(MarketingPlan[],,1),0),MATCH(MarketingVarianser[[#Headers],[Aug]],MarketingPlan[#Headers],0))-INDEX(MarketingFaktisk[],MATCH(INDEX(MarketingVarianser[],ROW()-ROW(MarketingVarianser[[#Headers],[Aug]]),1),INDEX(MarketingPlan[],,1),0),MATCH(MarketingVarianser[[#Headers],[Aug]],MarketingFaktisk[#Headers],0)) -> kr. 5,000.00 | K26: =INDEX(MarketingPlan[],MATCH(INDEX(MarketingVarianser[],ROW()-ROW(MarketingVarianser[[#Headers],[Sep]]),1),INDEX(MarketingPlan[],,1),0),MATCH(MarketingVarianser[[#Headers],[Sep]],MarketingPlan[#Headers],0))-INDEX(MarketingFaktisk[],MATCH(INDEX(MarketingVarianser[],ROW()-ROW(MarketingVarianser[[#Headers],[Sep]]),1),INDEX(MarketingPlan[],,1),0),MATCH(MarketingVarianser[[#Headers],[Sep]],MarketingFaktisk[#Headers],0)) -> kr. 2,000.00 | L26: =INDEX(MarketingPlan[],MATCH(INDEX(MarketingVarianser[],ROW()-ROW(MarketingVarianser[[#Headers],[Okt]]),1),INDEX(MarketingPlan[],,1),0),MATCH(MarketingVarianser[[#Headers],[Okt]],MarketingPlan[#Headers],0))-INDEX(MarketingFaktisk[],MATCH(INDEX(MarketingVarianser[],ROW()-ROW(MarketingVarianser[[#Headers],[Okt]]),1),INDEX(MarketingPlan[],,1),0),MATCH(MarketingVarianser[[#Headers],[Okt]],MarketingFaktisk[#Headers],0)) -> kr. 2,000.00 | M26: =INDEX(MarketingPlan[],MATCH(INDEX(MarketingVarianser[],ROW()-ROW(MarketingVarianser[[#Headers],[Nov]]),1),INDEX(MarketingPlan[],,1),0),MATCH(MarketingVarianser[[#Headers],[Nov]],MarketingPlan[#Headers],0))-INDEX(MarketingFaktisk[],MATCH(INDEX(MarketingVarianser[],ROW()-ROW(MarketingVarianser[[#Headers],[Nov]]),1),INDEX(MarketingPlan[],,1),0),MATCH(MarketingVarianser[[#Headers],[Nov]],MarketingFaktisk[#Headers],0)) -> kr. 2,000.00 | N26: =INDEX(MarketingPlan[],MATCH(INDEX(MarketingVarianser[],ROW()-ROW(MarketingVarianser[[#Headers],[Dec]]),1),INDEX(MarketingPlan[],,1),0),MATCH(MarketingVarianser[[#Headers],[Dec]],MarketingPlan[#Headers],0))-INDEX(MarketingFaktisk[],MATCH(INDEX(MarketingVarianser[],ROW()-ROW(MarketingVarianser[[#Headers],[Dec]]),1),INDEX(MarketingPlan[],,1),0),MATCH(MarketingVarianser[[#Headers],[Dec]],MarketingFaktisk[#Headers],0)) -> kr. 5,000.00 | O26: =SUM(MarketingVarianser[[#This Row],[Jan]:[Dec]]) -> kr. 18,300.00
B27: Diverse udgifter | C27: =INDEX(MarketingPlan[],MATCH(INDEX(MarketingVarianser[],ROW()-ROW(MarketingVarianser[[#Headers],[Jan]]),1),INDEX(MarketingPlan[],,1),0),MATCH(MarketingVarianser[[#Headers],[Jan]],MarketingPlan[#Headers],0))-INDEX(MarketingFaktisk[],MATCH(INDEX(MarketingVarianser[],ROW()-ROW(MarketingVarianser[[#Headers],[Jan]]),1),INDEX(MarketingPlan[],,1),0),MATCH(MarketingVarianser[[#Headers],[Jan]],MarketingFaktisk[#Headers],0)) -> kr. 55.00 | D27: =INDEX(MarketingPlan[],MATCH(INDEX(MarketingVarianser[],ROW()-ROW(MarketingVarianser[[#Headers],[Feb]]),1),INDEX(MarketingPlan[],,1),0),MATCH(MarketingVarianser[[#Headers],[Feb]],MarketingPlan[#Headers],0))-INDEX(MarketingFaktisk[],MATCH(INDEX(MarketingVarianser[],ROW()-ROW(MarketingVarianser[[#Headers],[Feb]]),1),INDEX(MarketingPlan[],,1),0),MATCH(MarketingVarianser[[#Headers],[Feb]],MarketingFaktisk[#Headers],0)) -> kr. 44.00 | E27: =INDEX(MarketingPlan[],MATCH(INDEX(MarketingVarianser[],ROW()-ROW(MarketingVarianser[[#Headers],[Mar]]),1),INDEX(MarketingPlan[],,1),0),MATCH(MarketingVarianser[[#Headers],[Mar]],MarketingPlan[#Headers],0))-INDEX(MarketingFaktisk[],MATCH(INDEX(MarketingVarianser[],ROW()-ROW(MarketingVarianser[[#Headers],[Mar]]),1),INDEX(MarketingPlan[],,1),0),MATCH(MarketingVarianser[[#Headers],[Mar]],MarketingFaktisk[#Headers],0)) -> kr. 77.00 | F27: =INDEX(MarketingPlan[],MATCH(INDEX(MarketingVarianser[],ROW()-ROW(MarketingVarianser[[#Headers],[Apr]]),1),INDEX(MarketingPlan[],,1),0),MATCH(MarketingVarianser[[#Headers],[Apr]],MarketingPlan[#Headers],0))-INDEX(MarketingFaktisk[],MATCH(INDEX(MarketingVarianser[],ROW()-ROW(MarketingVarianser[[#Headers],[Apr]]),1),INDEX(MarketingPlan[],,1),0),MATCH(MarketingVarianser[[#Headers],[Apr]],MarketingFaktisk[#Headers],0)) -> kr. -23.00 | G27: =INDEX(MarketingPlan[],MATCH(INDEX(MarketingVarianser[],ROW()-ROW(MarketingVarianser[[#Headers],[Maj]]),1),INDEX(MarketingPlan[],,1),0),MATCH(MarketingVarianser[[#Headers],[Maj]],MarketingPlan[#Headers],0))-INDEX(MarketingFaktisk[],MATCH(INDEX(MarketingVarianser[],ROW()-ROW(MarketingVarianser[[#Headers],[Maj]]),1),INDEX(MarketingPlan[],,1),0),MATCH(MarketingVarianser[[#Headers],[Maj]],MarketingFaktisk[#Headers],0)) -> kr. 13.00 | H27: =INDEX(MarketingPlan[],MATCH(INDEX(MarketingVarianser[],ROW()-ROW(MarketingVarianser[[#Headers],[Jun]]),1),INDEX(MarketingPlan[],,1),0),MATCH(MarketingVarianser[[#Headers],[Jun]],MarketingPlan[#Headers],0))-INDEX(MarketingFaktisk[],MATCH(INDEX(MarketingVarianser[],ROW()-ROW(MarketingVarianser[[#Headers],[Jun]]),1),INDEX(MarketingPlan[],,1),0),MATCH(MarketingVarianser[[#Headers],[Jun]],MarketingFaktisk[#Headers],0)) -> kr. -45.00 | I27: =INDEX(MarketingPlan[],MATCH(INDEX(MarketingVarianser[],ROW()-ROW(MarketingVarianser[[#Headers],[Jul]]),1),INDEX(MarketingPlan[],,1),0),MATCH(MarketingVarianser[[#Headers],[Jul]],MarketingPlan[#Headers],0))-INDEX(MarketingFaktisk[],MATCH(INDEX(MarketingVarianser[],ROW()-ROW(MarketingVarianser[[#Headers],[Jul]]),1),INDEX(MarketingPlan[],,1),0),MATCH(MarketingVarianser[[#Headers],[Jul]],MarketingFaktisk[#Headers],0)) -> kr. 200.00 | J27: =INDEX(MarketingPlan[],MATCH(INDEX(MarketingVarianser[],ROW()-ROW(MarketingVarianser[[#Headers],[Aug]]),1),INDEX(MarketingPlan[],,1),0),MATCH(MarketingVarianser[[#Headers],[Aug]],MarketingPlan[#Headers],0))-INDEX(MarketingFaktisk[],MATCH(INDEX(MarketingVarianser[],ROW()-ROW(MarketingVarianser[[#Headers],[Aug]]),1),INDEX(MarketingPlan[],,1),0),MATCH(MarketingVarianser[[#Headers],[Aug]],MarketingFaktisk[#Headers],0)) -> kr. 200.00 | K27: =INDEX(MarketingPlan[],MATCH(INDEX(MarketingVarianser[],ROW()-ROW(MarketingVarianser[[#Headers],[Sep]]),1),INDEX(MarketingPlan[],,1),0),MATCH(MarketingVarianser[[#Headers],[Sep]],MarketingPlan[#Headers],0))-INDEX(MarketingFaktisk[],MATCH(INDEX(MarketingVarianser[],ROW()-ROW(MarketingVarianser[[#Headers],[Sep]]),1),INDEX(MarketingPlan[],,1),0),MATCH(MarketingVarianser[[#Headers],[Sep]],MarketingFaktisk[#Headers],0)) -> kr. 200.00 | L27: =INDEX(MarketingPlan[],MATCH(INDEX(MarketingVarianser[],ROW()-ROW(MarketingVarianser[[#Headers],[Okt]]),1),INDEX(MarketingPlan[],,1),0),MATCH(MarketingVarianser[[#Headers],[Okt]],MarketingPlan[#Headers],0))-INDEX(MarketingFaktisk[],MATCH(INDEX(MarketingVarianser[],ROW()-ROW(MarketingVarianser[[#Headers],[Okt]]),1),INDEX(MarketingPlan[],,1),0),MATCH(MarketingVarianser[[#Headers],[Okt]],MarketingFaktisk[#Headers],0)) -> kr. 200.00 | M27: =INDEX(MarketingPlan[],MATCH(INDEX(MarketingVarianser[],ROW()-ROW(MarketingVarianser[[#Headers],[Nov]]),1),INDEX(MarketingPlan[],,1),0),MATCH(MarketingVarianser[[#Headers],[Nov]],MarketingPlan[#Headers],0))-INDEX(MarketingFaktisk[],MATCH(INDEX(MarketingVarianser[],ROW()-ROW(MarketingVarianser[[#Headers],[Nov]]),1),INDEX(MarketingPlan[],,1),0),MATCH(MarketingVarianser[[#Headers],[Nov]],MarketingFaktisk[#Headers],0)) -> kr. 200.00 | N27: =INDEX(MarketingPlan[],MATCH(INDEX(MarketingVarianser[],ROW()-ROW(MarketingVarianser[[#Headers],[Dec]]),1),INDEX(MarketingPlan[],,1),0),MATCH(MarketingVarianser[[#Headers],[Dec]],MarketingPlan[#Headers],0))-INDEX(MarketingFaktisk[],MATCH(INDEX(MarketingVarianser[],ROW()-ROW(MarketingVarianser[[#Headers],[Dec]]),1),INDEX(MarketingPlan[],,1),0),MATCH(MarketingVarianser[[#Headers],[Dec]],MarketingFaktisk[#Headers],0)) -> kr. 200.00 | O27: =SUM(MarketingVarianser[[#This Row],[Jan]:[Dec]]) -> kr. 1,321.00
B28: Subtotal | C28: =SUBTOTAL(109,MarketingVarianser[Jan]) -> kr. 555.00 | D28: =SUBTOTAL(109,MarketingVarianser[Feb]) -> kr. -456.00 | E28: =SUBTOTAL(109,MarketingVarianser[Mar]) -> kr. -23.00 | F28: =SUBTOTAL(109,MarketingVarianser[Apr]) -> kr. -123.00 | G28: =SUBTOTAL(109,MarketingVarianser[Maj]) -> kr. 113.00 | H28: =SUBTOTAL(109,MarketingVarianser[Jun]) -> kr. -825.00 | I28: =SUBTOTAL(109,MarketingVarianser[Jul]) -> kr. 8,100.00 | J28: =SUBTOTAL(109,MarketingVarianser[Aug]) -> kr. 6,100.00 | K28: =SUBTOTAL(109,MarketingVarianser[Sep]) -> kr. 3,100.00 | L28: =SUBTOTAL(109,MarketingVarianser[Okt]) -> kr. 8,100.00 | M28: =SUBTOTAL(109,MarketingVarianser[Nov]) -> kr. 3,100.00 | N28: =SUBTOTAL(109,MarketingVarianser[Dec]) -> kr. 6,900.00 | O28: =SUBTOTAL(109,MarketingVarianser[ÅR]) -> kr. 34,641.00
B30: Kurser/rejser | C30: Jan | D30: Feb | E30: Mar | F30: Apr | G30: Maj | H30: Jun | I30: Jul | J30: Aug | K30: Sep | L30: Okt | M30: Nov | N30: Dec | O30: ÅR
B31: Kurser | C31: =INDEX(KursusOgRejsePlan[],MATCH(INDEX(KursusOgRejseVarianser[],ROW()-ROW(KursusOgRejseVarianser[[#Headers],[Jan]]),1),INDEX(KursusOgRejsePlan[],,1),0),MATCH(KursusOgRejseVarianser[[#Headers],[Jan]],KursusOgRejsePlan[#Headers],0))-INDEX(KursusOgRejseFaktisk[],MATCH(INDEX(KursusOgRejseVarianser[],ROW()-ROW(KursusOgRejseVarianser[[#Headers],[Jan]]),1),INDEX(KursusOgRejsePlan[],,1),0),MATCH(KursusOgRejseVarianser[[#Headers],[Jan]],KursusOgRejseFaktisk[#Headers],0)) -> kr. 400.00 | D31: =INDEX(KursusOgRejsePlan[],MATCH(INDEX(KursusOgRejseVarianser[],ROW()-ROW(KursusOgRejseVarianser[[#Headers],[Feb]]),1),INDEX(KursusOgRejsePlan[],,1),0),MATCH(KursusOgRejseVarianser[[#Headers],[Feb]],KursusOgRejsePlan[#Headers],0))-INDEX(KursusOgRejseFaktisk[],MATCH(INDEX(KursusOgRejseVarianser[],ROW()-ROW(KursusOgRejseVarianser[[#Headers],[Feb]]),1),INDEX(KursusOgRejsePlan[],,1),0),MATCH(KursusOgRejseVarianser[[#Headers],[Feb]],KursusOgRejseFaktisk[#Headers],0)) -> kr. -400.00 | E31: =INDEX(KursusOgRejsePlan[],MATCH(INDEX(KursusOgRejseVarianser[],ROW()-ROW(KursusOgRejseVarianser[[#Headers],[Mar]]),1),INDEX(KursusOgRejsePlan[],,1),0),MATCH(KursusOgRejseVarianser[[#Headers],[Mar]],KursusOgRejsePlan[#Headers],0))-INDEX(KursusOgRejseFaktisk[],MATCH(INDEX(KursusOgRejseVarianser[],ROW()-ROW(KursusOgRejseVarianser[[#Headers],[Mar]]),1),INDEX(KursusOgRejsePlan[],,1),0),MATCH(KursusOgRejseVarianser[[#Headers],[Mar]],KursusOgRejseFaktisk[#Headers],0)) -> kr. 600.00 | F31: =INDEX(KursusOgRejsePlan[],MATCH(INDEX(KursusOgRejseVarianser[],ROW()-ROW(KursusOgRejseVarianser[[#Headers],[Apr]]),1),INDEX(KursusOgRejsePlan[],,1),0),MATCH(KursusOgRejseVarianser[[#Headers],[Apr]],KursusOgRejsePlan[#Headers],0))-INDEX(KursusOgRejseFaktisk[],MATCH(INDEX(KursusOgRejseVarianser[],ROW()-ROW(KursusOgRejseVarianser[[#Headers],[Apr]]),1),INDEX(KursusOgRejsePlan[],,1),0),MATCH(KursusOgRejseVarianser[[#Headers],[Apr]],KursusOgRejseFaktisk[#Headers],0)) -> kr. 400.00 | G31: =INDEX(KursusOgRejsePlan[],MATCH(INDEX(KursusOgRejseVarianser[],ROW()-ROW(KursusOgRejseVarianser[[#Headers],[Maj]]),1),INDEX(KursusOgRejsePlan[],,1),0),MATCH(KursusOgRejseVarianser[[#Headers],[Maj]],KursusOgRejsePlan[#Headers],0))-INDEX(KursusOgRejseFaktisk[],MATCH(INDEX(KursusOgRejseVarianser[],ROW()-ROW(KursusOgRejseVarianser[[#Headers],[Maj]]),1),INDEX(KursusOgRejsePlan[],,1),0),MATCH(KursusOgRejseVarianser[[#Headers],[Maj]],KursusOgRejseFaktisk[#Headers],0)) -> kr. 800.00 | H31: =INDEX(KursusOgRejsePlan[],MATCH(INDEX(KursusOgRejseVarianser[],ROW()-ROW(KursusOgRejseVarianser[[#Headers],[Jun]]),1),INDEX(KursusOgRejsePlan[],,1),0),MATCH(KursusOgRejseVarianser[[#Headers],[Jun]],KursusOgRejsePlan[#Headers],0))-INDEX(KursusOgRejseFaktisk[],MATCH(INDEX(KursusOgRejseVarianser[],ROW()-ROW(KursusOgRejseVarianser[[#Headers],[Jun]]),1),INDEX(KursusOgRejsePlan[],,1),0),MATCH(KursusOgRejseVarianser[[#Headers],[Jun]],KursusOgRejseFaktisk[#Headers],0)) -> kr. -800.00 | I31: =INDEX(KursusOgRejsePlan[],MATCH(INDEX(KursusOgRejseVarianser[],ROW()-ROW(KursusOgRejseVarianser[[#Headers],[Jul]]),1),INDEX(KursusOgRejsePlan[],,1),0),MATCH(KursusOgRejseVarianser[[#Headers],[Jul]],KursusOgRejsePlan[#Headers],0))-INDEX(KursusOgRejseFaktisk[],MATCH(INDEX(KursusOgRejseVarianser[],ROW()-ROW(KursusOgRejseVarianser[[#Headers],[Jul]]),1),INDEX(KursusOgRejsePlan[],,1),0),MATCH(KursusOgRejseVarianser[[#Headers],[Jul]],KursusOgRejseFaktisk[#Headers],0)) -> kr. 2,000.00 | J31: =INDEX(KursusOgRejsePlan[],MATCH(INDEX(KursusOgRejseVarianser[],ROW()-ROW(KursusOgRejseVarianser[[#Headers],[Aug]]),1),INDEX(KursusOgRejsePlan[],,1),0),MATCH(KursusOgRejseVarianser[[#Headers],[Aug]],KursusOgRejsePlan[#Headers],0))-INDEX(KursusOgRejseFaktisk[],MATCH(INDEX(KursusOgRejseVarianser[],ROW()-ROW(KursusOgRejseVarianser[[#Headers],[Aug]]),1),INDEX(KursusOgRejsePlan[],,1),0),MATCH(KursusOgRejseVarianser[[#Headers],[Aug]],KursusOgRejseFaktisk[#Headers],0)) -> kr. 2,000.00 | K31: =INDEX(KursusOgRejsePlan[],MATCH(INDEX(KursusOgRejseVarianser[],ROW()-ROW(KursusOgRejseVarianser[[#Headers],[Sep]]),1),INDEX(KursusOgRejsePlan[],,1),0),MATCH(KursusOgRejseVarianser[[#Headers],[Sep]],KursusOgRejsePlan[#Headers],0))-INDEX(KursusOgRejseFaktisk[],MATCH(INDEX(KursusOgRejseVarianser[],ROW()-ROW(KursusOgRejseVarianser[[#Headers],[Sep]]),1),INDEX(KursusOgRejsePlan[],,1),0),MATCH(KursusOgRejseVarianser[[#Headers],[Sep]],KursusOgRejseFaktisk[#Headers],0)) -> kr. 2,000.00 | L31: =INDEX(KursusOgRejsePlan[],MATCH(INDEX(KursusOgRejseVarianser[],ROW()-ROW(KursusOgRejseVarianser[[#Headers],[Okt]]),1),INDEX(KursusOgRejsePlan[],,1),0),MATCH(KursusOgRejseVarianser[[#Headers],[Okt]],KursusOgRejsePlan[#Headers],0))-INDEX(KursusOgRejseFaktisk[],MATCH(INDEX(KursusOgRejseVarianser[],ROW()-ROW(KursusOgRejseVarianser[[#Headers],[Okt]]),1),INDEX(KursusOgRejsePlan[],,1),0),MATCH(KursusOgRejseVarianser[[#Headers],[Okt]],KursusOgRejseFaktisk[#Headers],0)) -> kr. 2,000.00 | M31: =INDEX(KursusOgRejsePlan[],MATCH(INDEX(KursusOgRejseVarianser[],ROW()-ROW(KursusOgRejseVarianser[[#Headers],[Nov]]),1),INDEX(KursusOgRejsePlan[],,1),0),MATCH(KursusOgRejseVarianser[[#Headers],[Nov]],KursusOgRejsePlan[#Headers],0))-INDEX(KursusOgRejseFaktisk[],MATCH(INDEX(KursusOgRejseVarianser[],ROW()-ROW(KursusOgRejseVarianser[[#Headers],[Nov]]),1),INDEX(KursusOgRejsePlan[],,1),0),MATCH(KursusOgRejseVarianser[[#Headers],[Nov]],KursusOgRejseFaktisk[#Headers],0)) -> kr. 2,000.00 | N31: =INDEX(KursusOgRejsePlan[],MATCH(INDEX(KursusOgRejseVarianser[],ROW()-ROW(KursusOgRejseVarianser[[#Headers],[Dec]]),1),INDEX(KursusOgRejsePlan[],,1),0),MATCH(KursusOgRejseVarianser[[#Headers],[Dec]],KursusOgRejsePlan[#Headers],0))-INDEX(KursusOgRejseFaktisk[],MATCH(INDEX(KursusOgRejseVarianser[],ROW()-ROW(KursusOgRejseVarianser[[#Headers],[Dec]]),1),INDEX(KursusOgRejsePlan[],,1),0),MATCH(KursusOgRejseVarianser[[#Headers],[Dec]],KursusOgRejseFaktisk[#Headers],0)) -> kr. 2,000.00 | O31: =SUM(KursusOgRejseVarianser[[#This Row],[Jan]:[Dec]]) -> kr. 13,000.00
B32: Kursusrelaterede rejseomkostninger | C32: =INDEX(KursusOgRejsePlan[],MATCH(INDEX(KursusOgRejseVarianser[],ROW()-ROW(KursusOgRejseVarianser[[#Headers],[Jan]]),1),INDEX(KursusOgRejsePlan[],,1),0),MATCH(KursusOgRejseVarianser[[#Headers],[Jan]],KursusOgRejsePlan[#Headers],0))-INDEX(KursusOgRejseFaktisk[],MATCH(INDEX(KursusOgRejseVarianser[],ROW()-ROW(KursusOgRejseVarianser[[#Headers],[Jan]]),1),INDEX(KursusOgRejsePlan[],,1),0),MATCH(KursusOgRejseVarianser[[#Headers],[Jan]],KursusOgRejseFaktisk[#Headers],0)) -> kr. 800.00 | D32: =INDEX(KursusOgRejsePlan[],MATCH(INDEX(KursusOgRejseVarianser[],ROW()-ROW(KursusOgRejseVarianser[[#Headers],[Feb]]),1),INDEX(KursusOgRejsePlan[],,1),0),MATCH(KursusOgRejseVarianser[[#Headers],[Feb]],KursusOgRejsePlan[#Headers],0))-INDEX(KursusOgRejseFaktisk[],MATCH(INDEX(KursusOgRejseVarianser[],ROW()-ROW(KursusOgRejseVarianser[[#Headers],[Feb]]),1),INDEX(KursusOgRejsePlan[],,1),0),MATCH(KursusOgRejseVarianser[[#Headers],[Feb]],KursusOgRejseFaktisk[#Headers],0)) -> kr. -200.00 | E32: =INDEX(KursusOgRejsePlan[],MATCH(INDEX(KursusOgRejseVarianser[],ROW()-ROW(KursusOgRejseVarianser[[#Headers],[Mar]]),1),INDEX(KursusOgRejsePlan[],,1),0),MATCH(KursusOgRejseVarianser[[#Headers],[Mar]],KursusOgRejsePlan[#Headers],0))-INDEX(KursusOgRejseFaktisk[],MATCH(INDEX(KursusOgRejseVarianser[],ROW()-ROW(KursusOgRejseVarianser[[#Headers],[Mar]]),1),INDEX(KursusOgRejsePlan[],,1),0),MATCH(KursusOgRejseVarianser[[#Headers],[Mar]],KursusOgRejseFaktisk[#Headers],0)) -> kr. 600.00 | F32: =INDEX(KursusOgRejsePlan[],MATCH(INDEX(KursusOgRejseVarianser[],ROW()-ROW(KursusOgRejseVarianser[[#Headers],[Apr]]),1),INDEX(KursusOgRejsePlan[],,1),0),MATCH(KursusOgRejseVarianser[[#Headers],[Apr]],KursusOgRejsePlan[#Headers],0))-INDEX(KursusOgRejseFaktisk[],MATCH(INDEX(KursusOgRejseVarianser[],ROW()-ROW(KursusOgRejseVarianser[[#Headers],[Apr]]),1),INDEX(KursusOgRejsePlan[],,1),0),MATCH(KursusOgRejseVarianser[[#Headers],[Apr]],KursusOgRejseFaktisk[#Headers],0)) -> kr. 800.00 | G32: =INDEX(KursusOgRejsePlan[],MATCH(INDEX(KursusOgRejseVarianser[],ROW()-ROW(KursusOgRejseVarianser[[#Headers],[Maj]]),1),INDEX(KursusOgRejsePlan[],,1),0),MATCH(KursusOgRejseVarianser[[#Headers],[Maj]],KursusOgRejsePlan[#Headers],0))-INDEX(KursusOgRejseFaktisk[],MATCH(INDEX(KursusOgRejseVarianser[],ROW()-ROW(KursusOgRejseVarianser[[#Headers],[Maj]]),1),INDEX(KursusOgRejsePlan[],,1),0),MATCH(KursusOgRejseVarianser[[#Headers],[Maj]],KursusOgRejseFaktisk[#Headers],0)) -> kr. 1,200.00 | H32: =INDEX(KursusOgRejsePlan[],MATCH(INDEX(KursusOgRejseVarianser[],ROW()-ROW(KursusOgRejseVarianser[[#Headers],[Jun]]),1),INDEX(KursusOgRejsePlan[],,1),0),MATCH(KursusOgRejseVarianser[[#Headers],[Jun]],KursusOgRejsePlan[#Headers],0))-INDEX(KursusOgRejseFaktisk[],MATCH(INDEX(KursusOgRejseVarianser[],ROW()-ROW(KursusOgRejseVarianser[[#Headers],[Jun]]),1),INDEX(KursusOgRejsePlan[],,1),0),MATCH(KursusOgRejseVarianser[[#Headers],[Jun]],KursusOgRejseFaktisk[#Headers],0)) -> kr. -1,500.00 | I32: =INDEX(KursusOgRejsePlan[],MATCH(INDEX(KursusOgRejseVarianser[],ROW()-ROW(KursusOgRejseVarianser[[#Headers],[Jul]]),1),INDEX(KursusOgRejsePlan[],,1),0),MATCH(KursusOgRejseVarianser[[#Headers],[Jul]],KursusOgRejsePlan[#Headers],0))-INDEX(KursusOgRejseFaktisk[],MATCH(INDEX(KursusOgRejseVarianser[],ROW()-ROW(KursusOgRejseVarianser[[#Headers],[Jul]]),1),INDEX(KursusOgRejsePlan[],,1),0),MATCH(KursusOgRejseVarianser[[#Headers],[Jul]],KursusOgRejseFaktisk[#Headers],0)) -> kr. 2,000.00 | J32: =INDEX(KursusOgRejsePlan[],MATCH(INDEX(KursusOgRejseVarianser[],ROW()-ROW(KursusOgRejseVarianser[[#Headers],[Aug]]),1),INDEX(KursusOgRejsePlan[],,1),0),MATCH(KursusOgRejseVarianser[[#Headers],[Aug]],KursusOgRejsePlan[#Headers],0))-INDEX(KursusOgRejseFaktisk[],MATCH(INDEX(KursusOgRejseVarianser[],ROW()-ROW(KursusOgRejseVarianser[[#Headers],[Aug]]),1),INDEX(KursusOgRejsePlan[],,1),0),MATCH(KursusOgRejseVarianser[[#Headers],[Aug]],KursusOgRejseFaktisk[#Headers],0)) -> kr. 2,000.00 | K32: =INDEX(KursusOgRejsePlan[],MATCH(INDEX(KursusOgRejseVarianser[],ROW()-ROW(KursusOgRejseVarianser[[#Headers],[Sep]]),1),INDEX(KursusOgRejsePlan[],,1),0),MATCH(KursusOgRejseVarianser[[#Headers],[Sep]],KursusOgRejsePlan[#Headers],0))-INDEX(KursusOgRejseFaktisk[],MATCH(INDEX(KursusOgRejseVarianser[],ROW()-ROW(KursusOgRejseVarianser[[#Headers],[Sep]]),1),INDEX(KursusOgRejsePlan[],,1),0),MATCH(KursusOgRejseVarianser[[#Headers],[Sep]],KursusOgRejseFaktisk[#Headers],0)) -> kr. 2,000.00 | L32: =INDEX(KursusOgRejsePlan[],MATCH(INDEX(KursusOgRejseVarianser[],ROW()-ROW(KursusOgRejseVarianser[[#Headers],[Okt]]),1),INDEX(KursusOgRejsePlan[],,1),0),MATCH(KursusOgRejseVarianser[[#Headers],[Okt]],KursusOgRejsePlan[#Headers],0))-INDEX(KursusOgRejseFaktisk[],MATCH(INDEX(KursusOgRejseVarianser[],ROW()-ROW(KursusOgRejseVarianser[[#Headers],[Okt]]),1),INDEX(KursusOgRejsePlan[],,1),0),MATCH(KursusOgRejseVarianser[[#Headers],[Okt]],KursusOgRejseFaktisk[#Headers],0)) -> kr. 2,000.00 | M32: =INDEX(KursusOgRejsePlan[],MATCH(INDEX(KursusOgRejseVarianser[],ROW()-ROW(KursusOgRejseVarianser[[#Headers],[Nov]]),1),INDEX(KursusOgRejsePlan[],,1),0),MATCH(KursusOgRejseVarianser[[#Headers],[Nov]],KursusOgRejsePlan[#Headers],0))-INDEX(KursusOgRejseFaktisk[],MATCH(INDEX(KursusOgRejseVarianser[],ROW()-ROW(KursusOgRejseVarianser[[#Headers],[Nov]]),1),INDEX(KursusOgRejsePlan[],,1),0),MATCH(KursusOgRejseVarianser[[#Headers],[Nov]],KursusOgRejseFaktisk[#Headers],0)) -> kr. 2,000.00 | N32: =INDEX(KursusOgRejsePlan[],MATCH(INDEX(KursusOgRejseVarianser[],ROW()-ROW(KursusOgRejseVarianser[[#Headers],[Dec]]),1),INDEX(KursusOgRejsePlan[],,1),0),MATCH(KursusOgRejseVarianser[[#Headers],[Dec]],KursusOgRejsePlan[#Headers],0))-INDEX(KursusOgRejseFaktisk[],MATCH(INDEX(KursusOgRejseVarianser[],ROW()-ROW(KursusOgRejseVarianser[[#Headers],[Dec]]),1),INDEX(KursusOgRejsePlan[],,1),0),MATCH(KursusOgRejseVarianser[[#Headers],[Dec]],KursusOgRejseFaktisk[#Headers],0)) -> kr. 2,000.00 | O32: =SUM(KursusOgRejseVarianser[[#This Row],[Jan]:[Dec]]) -> kr. 13,700.00
B33: Subtotal | C33: =SUBTOTAL(109,KursusOgRejseVarianser[Jan]) -> kr. 1,200.00 | D33: =SUBTOTAL(109,KursusOgRejseVarianser[Feb]) -> kr. -600.00 | E33: =SUBTOTAL(109,KursusOgRejseVarianser[Mar]) -> kr. 1,200.00 | F33: =SUBTOTAL(109,KursusOgRejseVarianser[Apr]) -> kr. 1,200.00 | G33: =SUBTOTAL(109,KursusOgRejseVarianser[Maj]) -> kr. 2,000.00 | H33: =SUBTOTAL(109,KursusOgRejseVarianser[Jun]) -> kr. -2,300.00 | I33: =SUBTOTAL(109,KursusOgRejseVarianser[Jul]) -> kr. 4,000.00 | J33: =SUBTOTAL(109,KursusOgRejseVarianser[Aug]) -> kr. 4,000.00 | K33: =SUBTOTAL(109,KursusOgRejseVarianser[Sep]) -> kr. 4,000.00 | L33: =SUBTOTAL(109,KursusOgRejseVarianser[Okt]) -> kr. 4,000.00 | M33: =SUBTOTAL(109,KursusOgRejseVarianser[Nov]) -> kr. 4,000.00 | N33: =SUBTOTAL(109,KursusOgRejseVarianser[Dec]) -> kr. 4,000.00 | O33: =SUBTOTAL(109,KursusOgRejseVarianser[ÅR]) -> kr. 26,700.00
B35: SAMLEDE BELØB | C35: Jan | D35: Feb | E35: Mar | F35: Apr | G35: Maj | H35: Jun | I35: Jul | J35: Aug | K35: Sep | L35: Okt | M35: Nov | N35: Dec | O35: År
B36: Månedlige faktiske udgifter | C36: =KursusOgRejseVarianser[[#Totals],[Jan]]+MarketingVarianser[[#Totals],[Jan]]+KontorVarians[[#Totals],[Jan]]+MedarbejderVarians[[#Totals],[Jan]] -> kr. 1,738.00 | D36: =KursusOgRejseVarianser[[#Totals],[Feb]]+MarketingVarianser[[#Totals],[Feb]]+KontorVarians[[#Totals],[Feb]]+MedarbejderVarians[[#Totals],[Feb]] -> kr. -984.00 | E36: =KursusOgRejseVarianser[[#Totals],[Mar]]+MarketingVarianser[[#Totals],[Mar]]+KontorVarians[[#Totals],[Mar]]+MedarbejderVarians[[#Totals],[Mar]] -> kr. 1,255.00 | F36: =KursusOgRejseVarianser[[#Totals],[Apr]]+MarketingVarianser[[#Totals],[Apr]]+KontorVarians[[#Totals],[Apr]]+MedarbejderVarians[[#Totals],[Apr]] -> kr. 301.00 | G36: =KursusOgRejseVarianser[[#Totals],[Maj]]+MarketingVarianser[[#Totals],[Maj]]+KontorVarians[[#Totals],[Maj]]+MedarbejderVarians[[#Totals],[Maj]] -> kr. 1,440.00 | H36: =KursusOgRejseVarianser[[#Totals],[Jun]]+MarketingVarianser[[#Totals],[Jun]]+KontorVarians[[#Totals],[Jun]]+MedarbejderVarians[[#Totals],[Jun]] -> kr. -3,744.00 | I36: =KursusOgRejseVarianser[[#Totals],[Jul]]+MarketingVarianser[[#Totals],[Jul]]+KontorVarians[[#Totals],[Jul]]+MedarbejderVarians[[#Totals],[Jul]] -> kr. 134,695.00 | J36: =KursusOgRejseVarianser[[#Totals],[Aug]]+MarketingVarianser[[#Totals],[Aug]]+KontorVarians[[#Totals],[Aug]]+MedarbejderVarians[[#Totals],[Aug]] -> kr. 138,918.00 | K36: =KursusOgRejseVarianser[[#Totals],[Sep]]+MarketingVarianser[[#Totals],[Sep]]+KontorVarians[[#Totals],[Sep]]+MedarbejderVarians[[#Totals],[Sep]] -> kr. 135,918.00 | L36: =KursusOgRejseVarianser[[#Totals],[Okt]]+MarketingVarianser[[#Totals],[Okt]]+KontorVarians[[#Totals],[Okt]]+MedarbejderVarians[[#Totals],[Okt]] -> kr. 140,918.00 | M36: =KursusOgRejseVarianser[[#Totals],[Nov]]+MarketingVarianser[[#Totals],[Nov]]+KontorVarians[[#Totals],[Nov]]+MedarbejderVarians[[#Totals],[Nov]] -> kr. 136,218.00 | N36: =KursusOgRejseVarianser[[#Totals],[Dec]]+MarketingVarianser[[#Totals],[Dec]]+KontorVarians[[#Totals],[Dec]]+MedarbejderVarians[[#Totals],[Dec]] -> kr. 140,018.00 | O36: =KursusOgRejseVarianser[[#Totals],[ÅR]]+MarketingVarianser[[#Totals],[ÅR]]+KontorVarians[[#Totals],[ÅR]]+MedarbejderVarians[[#Totals],[ÅR]] -> kr. 826,691.00
B37: SAMLEDE faktiske udgifter | C37: =SUM($C$36:C36) -> kr. 1,738.00 | D37: =SUM($C$36:D36) -> kr. 754.00 | E37: =SUM($C$36:E36) -> kr. 2,009.00 | F37: =SUM($C$36:F36) -> kr. 2,310.00 | G37: =SUM($C$36:G36) -> kr. 3,750.00 | H37: =SUM($C$36:H36) -> kr. 6.00 | I37: =SUM($C$36:I36) -> kr. 134,701.00 | J37: =SUM($C$36:J36) -> kr. 273,619.00 | K37: =SUM($C$36:K36) -> kr. 409,537.00 | L37: =SUM($C$36:L36) -> kr. 550,455.00 | M37: =SUM($C$36:M36) -> kr. 686,673.00 | N37: =SUM($C$36:N36) -> kr. 826,691.00

Sheet UDGIFTSANALYSE
B2: ='PLANLAGTE UDGIFTER'!B2:D3 -> Firmanavn
E3: =worksheet_title -> Detaljerede omkostningsestimater
B5: Udgiftskategori | C5: Planlagte udgifter | D5: Faktiske udgifter | E5: Udgiftsafvigelser | F5: Afvigelsesprocent
B6: Medarbejderomkostninger | C6: =MedarbejderPlan[[#Totals],[ÅR]] -> kr. 1,355,090.00 | D6: =MedarbejderFaktisk[[#Totals],[ÅR]] -> kr. 659,130.00 | E6: =C6-D6 -> kr. 695,960.00 | F6: =E6/C6 -> 51%
B7: ='PLANLAGTE UDGIFTER'!B10 -> Kontoromkostninger | C7: =KontorPlan[[#Totals],[ÅR]] -> kr. 138,740.00 | D7: =KontorFaktisk[[#Totals],[ÅR]] -> kr. 69,350.00 | E7: =C7-D7 -> kr. 69,390.00 | F7: =E7/C7 -> 50%
B8: ='PLANLAGTE UDGIFTER'!B21 -> Marketingomkostninger | C8: =MarketingPlan[[#Totals],[ÅR]] -> kr. 67,800.00 | D8: =MarketingFaktisk[[#Totals],[ÅR]] -> kr. 33,159.00 | E8: =C8-D8 -> kr. 34,641.00 | F8: =E8/C8 -> 51%
B9: ='PLANLAGTE UDGIFTER'!B30 -> Kurser/rejser | C9: =KursusOgRejsePlan[[#Totals],[ÅR]] -> kr. 48,000.00 | D9: =KursusOgRejseFaktisk[[#Totals],[ÅR]] -> kr. 21,300.00 | E9: =C9-D9 -> kr. 26,700.00 | F9: =E9/C9 -> 56%
B10: ='PLANLAGTE UDGIFTER'!B35 -> SAMLEDE BELØB | C10: ='PLANLAGTE UDGIFTER'!O36 -> kr. 1,609,630.00 | D10: ='FAKTISKE UDGIFTER'!O36 -> kr. 782,939.00 | E10: =C10-D10 -> kr. 826,691.00 | F10: =E10/C10 -> 51%
